Department,Entiry,Posted Date,Interenal Voucher Number, Invoice Line Amount GBP ,Supplier Name,Account Code
FCO,FCO,22/11/2021,11435259,"213,565,584.78",HOME OFFICE,UKBA Visa Income Creditor Control
FCO,FCO,17/11/2021,11429370,"10,500,000.00",THE BRITISH COUNCIL,Programme Spend (Oracle Projects Control Account)
FCO,FCO,02/11/2021,11405710,"9,500,000.00",THE ASSOCIATION OF COMMONWEALTH UNIVERSITIES,Programme Spend (Oracle Projects Control Account)
FCO,FCO,30/11/2021,11447252,"9,100,000.00",FCDO BANKS,Inter Account Transfer (Cash in Transit)
FCO,FCO,08/11/2021,11413417,"8,554,563.80",ATALIAN SERVEST,Inward visits to the UK and UK Conferences
FCO,FCO,16/11/2021,11427194,"8,040,495.00",BBC BRITISH BROADCASTING CORPORATION,Programme Spend (Oracle Projects Control Account)
FCO,FCO,17/11/2021,11429391,"8,034,479.78",HMRC HM REVENUE AND CUSTOMS,Multiple Accounts
FCO,FCO,01/11/2021,11404239,"8,000,000.00",FCDO BANKS,Inter Account Transfer (Cash in Transit)
FCO,FCO,10/11/2021,11418429,"7,697,963.07",CABINET OFFICE,Multiple Accounts
FCO,FCO,01/11/2021,11404240,"5,800,000.00",FCDO BANKS,Inter Account Transfer (Cash in Transit)
FCO,FCO,17/11/2021,11429433,"5,741,556.63",UNITED NATIONS,Programme Spend (Oracle Projects Control Account)
FCO,FCO,02/11/2021,11406039,"3,470,018.00",IDENTITY INTEGRATED EVENTS PARTNER,Inward visits to the UK and UK Conferences
FCO,FCO,15/11/2021,11425612,"3,074,826.02",GRUNLEY CONSTRUCTION CO INC,Additions-Assets Under Construction (Oracle PA Control Account)
FCO,FCO,16/11/2021,11427262,"3,047,983.00",Optima Defence and Security Group Ltd,Inward visits to the UK and UK Conferences
FCO,FCO,01/11/2021,11404235,"3,000,000.00",FCDO BANKS,Inter Account Transfer (Cash in Transit)
FCO,FCO,01/11/2021,11427196,"2,899,670.71",THE ROYAL BANK OF SCOTLAND,GPC Clearing Account
FCO,FCO,01/11/2021,11404143,"2,842,858.60",FCDO POSTS,Funding Overseas Posts
FCO,FCO,01/11/2021,11404236,"2,500,000.00",FCDO BANKS,Inter Account Transfer (Cash in Transit)
FCO,FCO,23/11/2021,11437325,"2,393,056.68",COMPASS SERVICES UK LTD,Catering Services
FCO,FCO,30/11/2021,11447329,"2,177,723.19",GW CONSULTING UK LTD,UK Guarding Contracts Overseas
FCO,FCO,01/11/2021,11404237,"2,000,000.00",FCDO BANKS,Inter Account Transfer (Cash in Transit)
FCO,FCO,18/11/2021,11431822,"2,000,000.00",FCDO BANKS,Inter Account Transfer (Cash in Transit)
FCO,FCO,01/11/2021,11404136,"1,720,151.26",FCDO POSTS,Funding Overseas Posts
FCO,FCO,25/11/2021,11442181,"1,533,088.00",WESTMINSTER FOUNDATION FOR DEMOCRACY,Programme Spend (Oracle Projects Control Account)
FCO,FCO,01/11/2021,11404031,"1,376,911.37",FCDO POSTS,Funding Overseas Posts
FCO,FCO,01/11/2021,11427180,"1,374,660.26",THE ROYAL BANK OF SCOTLAND,Corporate Credit Card Clearing Account
FCO,FCO,11/11/2021,11421042,"1,365,316.33",FCDO POSTS,Funding Overseas Posts
FCO,FCO,01/11/2021,11427330,"1,197,448.46",THE ROYAL BANK OF SCOTLAND,Travel Package Advance Overseas Posting (Credit Card Payments Only)
FCO,FCO,02/11/2021,11405943,"1,100,067.94",GW CONSULTING UK LTD,UK Mobile Guarding Contract overseas
FCO,FCO,26/11/2021,11443209,"1,075,963.92",OAKTHORN MAXIMUM SECURITY VILLAGE,Rental Payments - residential
FCO,FCO,30/11/2021,11447299,"1,032,904.30",GILBERT ASH LIMITED,Additions-Assets Under Construction (Oracle PA Control Account)
FCO,FCO,01/11/2021,11404075,"1,030,462.01",FCDO POSTS,Funding Overseas Posts
FCO,FCO,23/11/2021,11437720,"963,106.02",UNITED NATIONS,Programme Spend (Oracle Projects Control Account)
FCO,FCO,26/11/2021,11443445,"959,434.81",MOTT MACDONALD LTD,Programme Spend (Oracle Projects Control Account)
FCO,FCO,18/11/2021,11431361,"890,437.50",FCDO SERVICES,Security: Works Non-Residential
FCO,FCO,01/11/2021,11404162,"853,864.32",FCDO POSTS,Funding Overseas Posts
FCO,FCO,01/11/2021,11404238,"800,000.00",FCDO BANKS,Inter Account Transfer (Cash in Transit)
FCO,FCO,18/11/2021,11431393,"795,000.00",JLL PROPERTY CONSULTANTS PTE LTD POE,FMCU POE Trust Account Debtor
FCO,FCO,12/11/2021,11422580,"793,924.44",SOMERFORD ASSOCIATES LIMITED,Telephone Call Charges
FCO,FCO,01/11/2021,11404194,"789,161.57",FCDO POSTS,Funding Overseas Posts
FCO,FCO,30/11/2021,11447027,"751,964.66",CHEMONICS INTERNATIONAL INC,Programme Spend (Oracle Projects Control Account)
FCO,FCO,01/11/2021,11404241,"700,000.00",FCDO BANKS,Inter Account Transfer (Cash in Transit)
FCO,FCO,03/11/2021,11407625,"700,000.00",UNDP CONTRIBUTIONS,Programme Spend (Oracle Projects Control Account)
FCO,FCO,01/11/2021,11404193,"675,890.82",FCDO POSTS,Funding Overseas Posts
FCO,FCO,10/11/2021,11417883,"663,900.16",RISK ADVISORY GROUP GS LTD,Programme Spend (Oracle Projects Control Account)
FCO,FCO,15/11/2021,11425891,"662,091.45",POMERLEAU INC,Additions-Assets Under Construction (Oracle PA Control Account)
FCO,FCO,19/11/2021,11432912,"633,678.84",GROH UND RANDEL STEUERBERATER,Multiple Accounts
FCO,FCO,02/11/2021,11406126,"600,000.00",UNITED NATIONS,Programme Spend (Oracle Projects Control Account)
FCO,FCO,05/11/2021,11411145,"562,410.00",PRAGUE CIVIL SOCIETY CENTRE,Programme Spend (Oracle Projects Control Account)
FCO,FCO,29/11/2021,11445428,"555,248.11",EDGHILL ASSOCIATES C BEAN KELECTRIC JV LTD,Programme Spend (Oracle Projects Control Account)
FCO,FCO,02/11/2021,11405800,"549,074.14",EUROPEAN ENDOWMENT FOR DEMOCRACY,Programme Spend (Oracle Projects Control Account)
FCO,FCO,02/11/2021,11405818,"542,623.64",FCDO SERVICES,Construction Project more than 10k
FCO,FCO,29/11/2021,11445255,"511,751.76",FINANCIERA DE DESARROLLO NACIONAL SA,Programme Spend (Oracle Projects Control Account)
FCO,FCO,23/11/2021,11437417,"509,123.84",CALDER AND WORLD OF TRAVEL,Accommodation
FCO,FCO,11/11/2021,11419978,"507,758.85",MERCY CORPS,Programme Spend (Oracle Projects Control Account)
FCO,FCO,01/11/2021,11404139,"496,583.87",FCDO POSTS,Funding Overseas Posts
FCO,FCO,10/11/2021,11417958,"496,445.87",RISK ADVISORY GROUP GS LTD,Programme Spend (Oracle Projects Control Account)
FCO,FCO,01/11/2021,11404042,"490,615.26",FCDO POSTS,Funding Overseas Posts
FCO,FCO,08/11/2021,11413309,"471,843.43",STADIUM MANAGEMENT LTD,Vehicle Hire
FCO,FCO,22/11/2021,11435368,"469,662.00",IOM INTERNATIONAL ORG FOR MIGRATION,Programme Spend (Oracle Projects Control Account)
FCO,FCO,09/11/2021,11415849,"463,653.60",SIREN ASSOCIATES LTD,Programme Spend (Oracle Projects Control Account)
FCO,FCO,26/11/2021,11443898,"462,045.09",UNITED NATIONS,Programme Spend (Oracle Projects Control Account)
FCO,FCO,30/11/2021,11447284,"460,508.19",THE ROYAL BANK OF SCOTLAND,Multiple Accounts
FCO,FCO,01/11/2021,11404017,"434,814.12",FCDO POSTS,Funding Overseas Posts
FCO,FCO,29/11/2021,11445589,"431,587.73",DAI GLOBAL UK LTD,Programme Spend (Oracle Projects Control Account)
FCO,FCO,11/11/2021,11420521,"425,144.88",PRICEWATERHOUSECOOPERS LLP,Programme Spend (Oracle Projects Control Account)
FCO,FCO,15/11/2021,11425599,"423,094.08",PRICEWATERHOUSECOOPERS LLP,Programme Spend (Oracle Projects Control Account)
FCO,FCO,19/11/2021,11433896,"422,696.95",INTERSERVE FM LTD,Multiple Accounts
FCO,FCO,19/11/2021,11432932,"413,295.72",Montagu Evans LLP,Rental Payments - non residential
FCO,FCO,01/11/2021,11402641,"411,460.18",MERCY CORPS,Programme Spend (Oracle Projects Control Account)
FCO,FCO,01/11/2021,11404166,"407,381.89",FCDO POSTS,Funding Overseas Posts
FCO,FCO,11/11/2021,11420182,"405,555.48",UNITED NATIONS,Programme Spend (Oracle Projects Control Account)
FCO,FCO,16/11/2021,11427491,"405,283.25",BBC MEDIA ACTION,Programme Spend (Oracle Projects Control Account)
FCO,FCO,08/11/2021,11413607,"397,638.00",UNICEF GLOBAL SHARED SERVICE CENTRE,Recharge Suspense Account (Oracle PA Control Account)
FCO,FCO,23/11/2021,11437287,"395,000.00",HEALIX INTERNATIONAL LTD,FCO Healthcare Scheme
FCO,FCO,19/11/2021,11432957,"391,172.63",DIPLOMATIC SERVICE BUREAU,Multiple Accounts
FCO,FCO,01/11/2021,11404025,"386,984.56",FCDO POSTS,Funding Overseas Posts
FCO,FCO,18/11/2021,11431477,"382,650.87",CROWN AGENTS LIMITED,Freight & Customs Clearance Charges
FCO,FCO,18/11/2021,11431422,"377,093.18",JLL PROPERTY CONSULTANTS PTE LTD POE,FMCU POE Trust Account Debtor
FCO,FCO,23/11/2021,11437092,"371,412.18",AXIOM INTERNATIONAL LTD,Programme Spend (Oracle Projects Control Account)
FCO,FCO,25/11/2021,11441033,"367,667.16",GROUP DEVELOPMENT PAKISTAN,Programme Spend (Oracle Projects Control Account)
FCO,FCO,10/11/2021,11417844,"363,563.93",OROSTREAM INTERNATIONAL CONTRACTS LTD,Repairs And Refurbishment: Works Residential
FCO,FCO,18/11/2021,11431381,"362,363.97",JLL PROPERTY CONSULTANTS PTE LTD POE,FMCU POE Trust Account Debtor
FCO,FCO,18/11/2021,11431298,"356,648.84",PRICEWATERHOUSECOOPERS LLP,Programme Spend (Oracle Projects Control Account)
FCO,FCO,30/11/2021,11447327,"353,089.88",GW CONSULTING UK LTD,UK Guarding Contracts Overseas
FCO,FCO,02/11/2021,11405940,"350,226.39",THE ASSOCIATION OF COMMONWEALTH UNIVERSITIES,Programme Spend (Oracle Projects Control Account)
FCO,FCO,25/11/2021,11442167,"349,800.17",PRICEWATERHOUSE COOPERS PRIVATE LIMITED,Programme Spend (Oracle Projects Control Account)
FCO,FCO,08/11/2021,11413385,"346,230.16",THE BRITISH COUNCIL,Programme Spend (Oracle Projects Control Account)
FCO,FCO,01/11/2021,11404255,"342,944.72",AXIOM INTERNATIONAL LTD,Programme Spend (Oracle Projects Control Account)
FCO,FCO,24/11/2021,11439570,"341,912.92",JLL PROPERTY CONSULTANTS PTE LTD,Construction Project more than 10k
FCO,FCO,30/11/2021,11447018,"336,016.87",JUAN GAVIRIA RESTREPO,Rental Payments - non residential
FCO,FCO,22/11/2021,11435314,"330,777.00",WESTMINSTER FOUNDATION FOR DEMOCRACY,Programme Spend (Oracle Projects Control Account)
FCO,FCO,18/11/2021,11431409,"326,130.51",JLL PROPERTY CONSULTANTS PTE LTD POE,FMCU POE Trust Account Debtor
FCO,FCO,01/11/2021,11404020,"326,110.59",FCDO POSTS,Funding Overseas Posts
FCO,FCO,11/11/2021,11421040,"326,110.59",FCDO POSTS,Funding Overseas Posts
FCO,FCO,29/11/2021,11445566,"325,031.27",BBC MEDIA ACTION,Programme Spend (Oracle Projects Control Account)
FCO,FCO,01/11/2021,11404799,"320,390.99",CONTROLLED BUILDING MEASURES LIMITED,Additions-Assets Under Construction (Oracle PA Control Account)
FCO,FCO,01/11/2021,11404028,"319,588.38",FCDO POSTS,Funding Overseas Posts
FCO,FCO,11/11/2021,11420311,"318,719.27",CORPORATE TRAVEL MANAGEMENT NORTH LTD,Consular Crisis Expenditure
FCO,FCO,08/11/2021,11413585,"314,293.00",DAI GLOBAL UK LTD,Programme Spend (Oracle Projects Control Account)
FCO,FCO,02/11/2021,11406102,"309,172.60",ATALIAN SERVEST,Manned Guarding Services
FCO,FCO,02/11/2021,11405862,"308,333.00",FCDO SERVICES,IT Management and Change
FCO,FCO,30/11/2021,11447153,"308,333.00",FCDO SERVICES,IT Management and Change
FCO,FCO,01/11/2021,11404186,"306,000.00",FCDO POSTS,Funding Overseas Posts
FCO,FCO,16/11/2021,11427187,"304,158.01",OVE ARUP & PARTNERS LTD,Programme Spend (Oracle Projects Control Account)
FCO,FCO,03/11/2021,11407758,"301,725.00",NATIONAL DEMOCRATIC INSTITUTE,Programme Spend (Oracle Projects Control Account)
FCO,FCO,01/11/2021,11404148,"299,395.68",FCDO POSTS,Funding Overseas Posts
FCO,FCO,23/11/2021,11437122,"298,620.23",THE BRITISH COUNCIL,Programme Spend (Oracle Projects Control Account)
FCO,FCO,17/11/2021,11429264,"296,240.00",THE WORLD BANK,Programme Spend (Oracle Projects Control Account)
FCO,FCO,08/11/2021,11413304,"294,123.00",STADIUM MANAGEMENT LTD,Vehicle Hire
FCO,FCO,01/11/2021,11404195,"289,869.34",FCDO POSTS,Funding Overseas Posts
FCO,FCO,19/11/2021,11432944,"289,139.56",SECUREX AGENCIES LTD,Staff and Other Advances AP Control (Oracle Ap Control Account)
FCO,FCO,02/11/2021,11405798,"283,783.76",FCDO SERVICES,Construction Project more than 10k
FCO,FCO,16/11/2021,11427178,"283,532.57",BAE SYSTEMS APPLIED INTELLIGENCE LIMITED,IT Management and Change
FCO,FCO,15/11/2021,11425702,"282,298.68",PICKFORDS MOVE MANAGEMENT LTD,Heavy Baggage
FCO,FCO,16/11/2021,11427183,"280,886.69",BAE SYSTEMS APPLIED INTELLIGENCE LIMITED,IT Management and Change
FCO,FCO,24/11/2021,11439554,"277,746.47",JLL PROPERTY CONSULTANTS PTE LTD,Multiple Accounts
FCO,FCO,30/11/2021,11447023,"275,000.00",INTERNATIONAL FINANCE CORPORATION,Programme Spend (Oracle Projects Control Account)
FCO,FCO,02/11/2021,11405795,"271,719.35",FCDO SERVICES,Construction Project more than 10k
FCO,FCO,25/11/2021,11441828,"270,451.93",DANISH DEMINING GROUP,Programme Spend (Oracle Projects Control Account)
FCO,FCO,29/11/2021,11445299,"266,968.88",FCDO SERVICES,Residential Property Services
FCO,FCO,16/11/2021,11427181,"265,481.58",BAE SYSTEMS APPLIED INTELLIGENCE LIMITED,IT Management and Change
FCO,FCO,19/11/2021,11433503,"261,660.99",THE BRITISH COUNCIL,Programme Spend (Oracle Projects Control Account)
FCO,FCO,24/11/2021,11439574,"260,755.75",JLL PROPERTY CONSULTANTS PTE LTD,Construction Project more than 10k
FCO,FCO,11/11/2021,11420787,"259,917.98",EDF ENERGY,Electricity Non-Residential
FCO,FCO,04/11/2021,11409387,"259,865.51",PALLADIUM,Programme Spend (Oracle Projects Control Account)
FCO,FCO,02/11/2021,11405998,"258,482.18",FCDO SERVICES,Unscheduled repairs to building infrastructure
FCO,FCO,03/11/2021,11407667,"256,847.18",URSSAF,Multiple Accounts
FCO,FCO,30/11/2021,11447303,"256,560.81",UNITED NATIONS HABITAT AND HUMAN SETTLEMENTS FOUNDATION,Programme Spend (Oracle Projects Control Account)
FCO,FCO,03/11/2021,11407739,"256,256.00",NATIONAL DEMOCRATIC INSTITUTE,Programme Spend (Oracle Projects Control Account)
FCO,FCO,24/11/2021,11439191,"256,224.86",CABINET OFFICE,Programme Spend (Oracle Projects Control Account)
FCO,FCO,01/11/2021,11404154,"256,176.91",FCDO POSTS,Funding Overseas Posts
FCO,FCO,11/11/2021,11421075,"253,802.17",FCDO POSTS,Funding Overseas Posts
FCO,FCO,10/11/2021,11417648,"253,301.81",CLICKSUPER,Multiple Accounts
FCO,FCO,08/11/2021,11413389,"251,493.21",OROSTREAM INTERNATIONAL CONTRACTS LTD,Additions-Assets Under Construction (Oracle PA Control Account)
FCO,FCO,01/11/2021,11404197,"250,000.00",FCDO POSTS,Funding Overseas Posts
FCO,FCO,01/11/2021,11404107,"249,209.37",EDF ENERGY,Electricity Non-Residential
FCO,FCO,22/11/2021,11435665,"246,379.53",845 THIRD LP,Multiple Accounts
FCO,FCO,19/11/2021,11432644,"244,667.03",GERRYS TRAVEL AGENCY PRIVATE LIMITED,Multiple Accounts
FCO,FCO,24/11/2021,11438982,"243,150.12",ADAM SMITH INTERNATIONAL,Programme Spend (Oracle Projects Control Account)
FCO,FCO,30/11/2021,11447080,"242,514.94",HMRC HM REVENUE AND CUSTOMS,Consular Crisis Expenditure
FCO,FCO,05/11/2021,11411504,"242,101.00",COMMISSION FOR JUSTICE AND ACCOUNTABILITY,Programme Spend (Oracle Projects Control Account)
FCO,FCO,01/11/2021,11404144,"239,494.88",FCDO POSTS,Funding Overseas Posts
FCO,FCO,19/11/2021,11433647,"239,330.96",JLL PROPERTY CONSULTANTS PTE LTD POE,Multiple Accounts
FCO,FCO,10/11/2021,11417994,"238,822.00",CHATHAM HOUSE ENTERPRISES LIMITED,Programme Spend (Oracle Projects Control Account)
FCO,FCO,01/11/2021,11404072,"236,926.72",FCDO POSTS,Funding Overseas Posts
FCO,FCO,24/11/2021,11439045,"234,912.00",UNITED NATIONS,Programme Spend (Oracle Projects Control Account)
FCO,FCO,12/11/2021,11422594,"227,392.00",KPMG LLP,Programme Spend (Oracle Projects Control Account)
FCO,FCO,17/11/2021,11429340,"226,541.00",CROWN AGENTS LIMITED,Programme Spend (Oracle Projects Control Account)
FCO,FCO,19/11/2021,11433754,"225,457.76",INTERSERVE FM LTD,Additions-Assets Under Construction (Oracle PA Control Account)
FCO,FCO,26/11/2021,11443412,"225,407.34",PALLADIUM,Programme Spend (Oracle Projects Control Account)
FCO,FCO,11/11/2021,11421091,"225,299.11",FCDO POSTS,Funding Overseas Posts
FCO,FCO,22/11/2021,11435845,"224,430.00",THE ASSOCIATION OF COMMONWEALTH UNIVERSITIES,Programme Spend (Oracle Projects Control Account)
FCO,FCO,01/11/2021,11404069,"224,234.22",FCDO POSTS,Funding Overseas Posts
FCO,FCO,01/11/2021,11404152,"224,107.77",FCDO POSTS,Funding Overseas Posts
FCO,FCO,12/11/2021,11422555,"222,549.00",CHARITIES AID FOUNDATION,Programme Spend (Oracle Projects Control Account)
FCO,FCO,09/11/2021,11416013,"221,284.22",OVERSEAS SUPPLY SERVICES LTD,Estates Management Services
FCO,FCO,10/11/2021,11417987,"220,597.62",BAE SYSTEMS APPLIED INTELLIGENCE LIMITED,IT Management and Change
FCO,FCO,01/11/2021,11404151,"220,501.56",FCDO POSTS,Funding Overseas Posts
FCO,FCO,01/11/2021,11404065,"220,471.00",KPMG LLP,Programme Spend (Oracle Projects Control Account)
FCO,FCO,10/11/2021,11417926,"220,385.41",BAE SYSTEMS APPLIED INTELLIGENCE LIMITED,IT Management and Change
FCO,FCO,10/11/2021,11417981,"218,695.92",BAE SYSTEMS APPLIED INTELLIGENCE LIMITED,IT Management and Change
FCO,FCO,11/11/2021,11421041,"217,407.06",FCDO POSTS,Funding Overseas Posts
FCO,FCO,24/11/2021,11439561,"211,899.46",JLL PROPERTY CONSULTANTS PTE LTD,Construction Project more than 10k
FCO,FCO,02/11/2021,11405871,"209,189.71",FCDO SERVICES,Air Freight Dip Bags - Freight & Clearance Charges
FCO,FCO,19/11/2021,11433649,"208,593.40",JLL PROPERTY CONSULTANTS PTE LTD POE,Multiple Accounts
FCO,FCO,01/11/2021,11403977,"207,861.56",UNITED NATIONS,Programme Spend (Oracle Projects Control Account)
FCO,FCO,09/11/2021,11416091,"207,075.00",SOFTWAREONE UK LTD,End User Software and Hardware
FCO,FCO,02/11/2021,11406075,"205,640.22",GILBERT ASH LIMITED,Additions-Assets Under Construction (Oracle PA Control Account)
FCO,FCO,05/11/2021,11411001,"205,361.78",PEACEFUL CHANGE INITIATIVE,Programme Spend (Oracle Projects Control Account)
FCO,FCO,04/11/2021,11427196,"205,051.73",THE ROYAL BANK OF SCOTLAND,GPC Clearing Account
FCO,FCO,19/11/2021,11433867,"202,697.09",INTERSERVE FM LTD,Additions-Assets Under Construction (Oracle PA Control Account)
FCO,FCO,19/11/2021,11433319,"199,084.94",SEGURIDAD SOCIAL,Multiple Accounts
FCO,FCO,23/11/2021,11437056,"198,934.01",GW CONSULTING UK LTD,Multiple Accounts
FCO,FCO,09/11/2021,11416000,"198,590.38",SOLIDARITY FUND POLAND,Programme Spend (Oracle Projects Control Account)
FCO,FCO,01/11/2021,11404098,"196,301.88",BSI STANDARDS INSTITUTION & TRAINING,Programme Spend (Oracle Projects Control Account)
FCO,FCO,02/11/2021,11406060,"195,900.00",AVANADE UK LIMITED,End User Software and Hardware
FCO,FCO,25/11/2021,11441804,"194,682.42",CAPGEMINI UK PLC,IT Support
FCO,FCO,30/11/2021,11447021,"194,307.79",AECOM,Additions-Assets Under Construction (Oracle PA Control Account)
FCO,FCO,23/11/2021,11437323,"194,124.61",FCDO SERVICES,Misc Expenditure (only to be used if no other suitable account)
FCO,FCO,26/11/2021,11443900,"194,055.30",CARE INTERNATIONAL UK,Programme Spend (Oracle Projects Control Account)
FCO,FCO,15/11/2021,11425786,"193,137.00",Mckinsey Development Partners Limited,Programme Spend (Oracle Projects Control Account)
FCO,FCO,01/11/2021,11404150,"191,367.59",FCDO POSTS,Funding Overseas Posts
FCO,FCO,26/11/2021,11443754,"189,020.07",PICKFORDS MOVE MANAGEMENT LTD,Heavy Baggage
FCO,FCO,29/11/2021,11445288,"188,370.00",FCDO SERVICES,Specialist Contractors
FCO,FCO,17/11/2021,11429325,"188,067.57",CARE INTERNATIONAL UK,Programme Spend (Oracle Projects Control Account)
FCO,FCO,01/11/2021,11404157,"187,111.08",FCDO POSTS,Funding Overseas Posts
FCO,FCO,11/11/2021,11421077,"187,111.08",FCDO POSTS,Funding Overseas Posts
FCO,FCO,12/11/2021,11423029,"186,354.00",IDENTITY INTEGRATED EVENTS PARTNER,Inward visits to the UK and UK Conferences
FCO,FCO,08/11/2021,11413300,"186,223.42",STADIUM MANAGEMENT LTD,Vehicle Hire
FCO,FCO,10/11/2021,11418059,"185,017.07",THE BRITISH COUNCIL,Programme Spend (Oracle Projects Control Account)
FCO,FCO,08/11/2021,11413245,"183,848.64",ERNST AND YOUNG LLP,Programme Spend (Oracle Projects Control Account)
FCO,FCO,05/11/2021,11411120,"183,110.00",PRAGUE CIVIL SOCIETY CENTRE,Programme Spend (Oracle Projects Control Account)
FCO,FCO,29/11/2021,11445574,"182,953.57",ZINC NETWORK LIMITED,Programme Spend (Oracle Projects Control Account)
FCO,FCO,24/11/2021,11438980,"182,538.80",CENTRE FOR INFORMATION RESILIENCE,Programme Spend (Oracle Projects Control Account)
FCO,FCO,01/11/2021,11404160,"178,953.40",FCDO POSTS,Funding Overseas Posts
FCO,FCO,10/11/2021,11419389,"177,287.99",COMET-ME LTD (CC),Programme Spend (Oracle Projects Control Account)
FCO,FCO,30/11/2021,11447316,"177,238.80",GW CONSULTING UK LTD,UK Guarding Contracts Overseas
FCO,FCO,09/11/2021,11416010,"175,257.00",UNITED NATIONS,Programme Spend (Oracle Projects Control Account)
FCO,FCO,01/11/2021,11404034,"174,613.38",FCDO POSTS,Funding Overseas Posts
FCO,FCO,26/11/2021,11443894,"174,349.76",ORACLE CORPORATION (UK) LTD,IT/IS Consultancy
FCO,FCO,25/11/2021,11442174,"173,731.00",HEALTH EDUCATION ENGLAND,Programme Spend (Oracle Projects Control Account)
FCO,FCO,18/11/2021,11431486,"171,472.82",ZINC NETWORK LIMITED,Programme Spend (Oracle Projects Control Account)
FCO,FCO,23/11/2021,11437229,"170,680.34",FCDO SERVICES,Air Freight Dip Bags - Freight & Clearance Charges
FCO,FCO,01/11/2021,11404155,"169,939.85",FCDO POSTS,Funding Overseas Posts
FCO,FCO,19/11/2021,11433507,"168,045.95",BAE SYSTEMS APPLIED INTELLIGENCE LIMITED,IT Management and Change
FCO,FCO,11/11/2021,11420609,"167,650.75",OVERSEAS SUPPLY SERVICES LTD,Estates Management Services
FCO,FCO,16/11/2021,11427148,"167,153.49",PALLADIUM,Programme Spend (Oracle Projects Control Account)
FCO,FCO,01/11/2021,11404253,"166,660.00",M AND C SAATCHI,Programme Spend (Oracle Projects Control Account)
FCO,FCO,18/11/2021,11431332,"166,645.22",PROFESSIONAL LANGUAGE SOLUTIONS,Language Tuition: Essential
FCO,FCO,16/11/2021,11427520,"166,320.00",THE WORLD BANK,Programme Spend (Oracle Projects Control Account)
FCO,FCO,02/11/2021,11405867,"165,309.00",FCDO SERVICES,Construction Project more than 10k
FCO,FCO,02/11/2021,11405960,"165,146.22",GW CONSULTING UK LTD,UK Mobile Guarding Contract overseas
FCO,FCO,01/11/2021,11404153,"164,995.22",FCDO POSTS,Funding Overseas Posts
FCO,FCO,24/11/2021,11439435,"164,941.15",JLL PROPERTY CONSULTANTS PTE LTD,Multiple Accounts
FCO,FCO,18/11/2021,11431378,"164,131.74",JLL PROPERTY CONSULTANTS PTE LTD POE,FMCU POE Trust Account Debtor
FCO,FCO,30/11/2021,11447308,"163,423.00",Mckinsey Development Partners Limited,Programme Spend (Oracle Projects Control Account)
FCO,FCO,29/11/2021,11445491,"160,251.51",EUROPEAN BANKING AUTHORITY,Protocol - General VAT Refunds to Other Organisations
FCO,FCO,01/11/2021,11404073,"159,546.45",FCDO POSTS,Funding Overseas Posts
FCO,FCO,01/11/2021,11404016,"159,431.84",FCDO POSTS,Funding Overseas Posts
FCO,FCO,17/11/2021,11429527,"159,072.60",SINTEZA CO SHPK,Recharge Suspense Account (Oracle PA Control Account)
FCO,FCO,01/11/2021,11404043,"158,220.89",FCDO POSTS,Funding Overseas Posts
FCO,FCO,08/11/2021,11413257,"157,683.88",BDO LLP,Programme Spend (Oracle Projects Control Account)
FCO,FCO,10/11/2021,11418021,"157,457.55",NATHAN ASSOCIATES LONDON LTD,Programme Spend (Oracle Projects Control Account)
FCO,FCO,30/11/2021,11447020,"156,666.66",THE SHADOWSERVER FOUNDATION,Programme Spend (Oracle Projects Control Account)
FCO,FCO,03/11/2021,11427196,"155,626.95",THE ROYAL BANK OF SCOTLAND,GPC Clearing Account
FCO,FCO,16/11/2021,11427155,"155,592.30",THE HALO TRUST,Programme Spend (Oracle Projects Control Account)
FCO,FCO,05/11/2021,11411134,"155,525.02",ADAM SMITH INTERNATIONAL,Programme Spend (Oracle Projects Control Account)
FCO,FCO,17/11/2021,11429417,"155,042.28",MINIMAL RISK CONSULTANCY LTD,UK Guarding Contracts Overseas
FCO,FCO,01/11/2021,11404044,"154,576.42",FCDO POSTS,Funding Overseas Posts
FCO,FCO,17/11/2021,11429312,"153,600.07",CROWN AGENTS LIMITED,Programme Spend (Oracle Projects Control Account)
FCO,FCO,02/11/2021,11405757,"152,505.62",FCDO SERVICES,Construction Project more than 10k
FCO,FCO,04/11/2021,11409772,"152,462.95",TORRE ESPACIO CASTELLANA SAU,Multiple Accounts
FCO,FCO,04/11/2021,11409409,"150,000.00",COUNCIL OF EUROPE,Programme Spend (Oracle Projects Control Account)
FCO,FCO,19/11/2021,11433678,"149,582.39",INTERSERVE FM LTD,Multiple Accounts
FCO,FCO,11/11/2021,11421400,"145,246.33",AETNA,Multiple Accounts
FCO,FCO,05/11/2021,11411578,"144,938.04",SITE INTELLIGENCE GROUP,Programme Spend (Oracle Projects Control Account)
FCO,FCO,29/11/2021,11445540,"143,001.00",CAPGEMINI UK PLC,IT Management and Change
FCO,FCO,03/11/2021,11407660,"142,840.33",ADAM SMITH INTERNATIONAL,Programme Spend (Oracle Projects Control Account)
FCO,FCO,08/11/2021,11427196,"142,339.27",THE ROYAL BANK OF SCOTLAND,GPC Clearing Account
FCO,FCO,25/11/2021,11442154,"142,336.00",MILTON KEYNES COUNCIL,Rates Taxes Non-Residential
FCO,FCO,02/11/2021,11405989,"141,051.00",FCDO SERVICES,Additions-Assets Under Construction (Oracle PA Control Account)
FCO,FCO,18/11/2021,11431204,"140,723.33",SHANGHAI FOREIGN AGENCY SERVICE COMPANY,Multiple Accounts
FCO,FCO,01/11/2021,11404039,"140,589.90",FCDO POSTS,Funding Overseas Posts
FCO,FCO,08/11/2021,11413141,"139,468.25",GROUP DEVELOPMENT PAKISTAN,Programme Spend (Oracle Projects Control Account)
FCO,FCO,05/11/2021,11410902,"138,575.00",CAUTION YOUR BLAST LTD,Additions-Assets Under Construction (Oracle PA Control Account)
FCO,FCO,19/11/2021,11433756,"137,486.13",INTERSERVE FM LTD,Construction Project more than 10k
FCO,FCO,24/11/2021,11439019,"137,399.40",ADAM SMITH INTERNATIONAL,Programme Spend (Oracle Projects Control Account)
FCO,FCO,23/11/2021,11437241,"136,736.91",KPMG FIDUCIAIRE,Multiple Accounts
FCO,FCO,03/11/2021,11407610,"135,548.23",HALA SYSTEMS INC,Programme Spend (Oracle Projects Control Account)
FCO,FCO,01/11/2021,11404141,"135,392.69",FCDO POSTS,Funding Overseas Posts
FCO,FCO,02/11/2021,11427196,"134,761.58",THE ROYAL BANK OF SCOTLAND,GPC Clearing Account
FCO,FCO,19/11/2021,11433515,"134,725.78",GLASGOW LTD,Inward visits to the UK and UK Conferences
FCO,FCO,05/11/2021,11427196,"133,335.06",THE ROYAL BANK OF SCOTLAND,GPC Clearing Account
FCO,FCO,18/11/2021,11431334,"133,325.14",SECURE CONSTRUCT LTD,Construction Project more than 10k
FCO,FCO,25/11/2021,11442027,"128,491.45",FCDO SERVICES,Construction Project more than 10k
FCO,FCO,09/11/2021,11427196,"128,137.62",THE ROYAL BANK OF SCOTLAND,GPC Clearing Account
FCO,FCO,22/11/2021,11435274,"128,107.03",TETRA TECH MANAGEMENT SERVICES LIMITED,Additions-Assets Under Construction (Oracle PA Control Account)
FCO,FCO,01/11/2021,11404142,"127,833.75",FCDO POSTS,Funding Overseas Posts
FCO,FCO,02/11/2021,11405887,"127,296.39",FCDO SERVICES,Multiple Accounts
FCO,FCO,01/11/2021,11404074,"126,925.03",FCDO POSTS,Funding Overseas Posts
FCO,FCO,23/11/2021,11437104,"126,896.03",ALBANY ASSOCIATES,Programme Spend (Oracle Projects Control Account)
FCO,FCO,19/11/2021,11433831,"126,869.52",INTERSERVE FM LTD,Multiple Accounts
FCO,FCO,30/11/2021,11447076,"126,608.49",HMRC HM REVENUE AND CUSTOMS,Consular Crisis Expenditure
FCO,FCO,26/11/2021,11443424,"125,781.00",INNOVATION AND INSIGHT FZE,Programme Spend (Oracle Projects Control Account)
FCO,FCO,09/11/2021,11416605,"125,093.00",UNITED NATIONS DEVELOPMENT PROGRAMME,Programme Spend (Oracle Projects Control Account)
FCO,FCO,09/11/2021,11416063,"123,946.99",GOVERNMENT LEGAL DEPARTMENT,Legal Consultancy
FCO,FCO,24/11/2021,11439456,"121,923.16",JLL PROPERTY CONSULTANTS PTE LTD,Multiple Accounts
FCO,FCO,16/11/2021,11427159,"121,170.79",THE HALO TRUST,Programme Spend (Oracle Projects Control Account)
FCO,FCO,15/11/2021,11425717,"121,020.48",PICKFORDS MOVE MANAGEMENT LTD,Heavy Baggage
FCO,FCO,12/11/2021,11422240,"120,205.39",JUSTICE BASE,Programme Spend (Oracle Projects Control Account)
FCO,FCO,17/11/2021,11429459,"120,000.00",GOVERNMENT OF TRISTAN DA CUNHA,Programme Spend (Oracle Projects Control Account)
FCO,FCO,26/11/2021,11443458,"120,000.00",UNITED NATIONS OFFICE ON DRUGS AND CRIME,Programme Spend (Oracle Projects Control Account)
FCO,FCO,01/11/2021,11404214,"119,974.47",PICKFORDS MOVE MANAGEMENT LTD,Heavy Baggage
FCO,FCO,26/11/2021,11443214,"118,378.96",OAKTHORN MAXIMUM SECURITY VILLAGE,Rental Payments - residential
FCO,FCO,10/11/2021,11417978,"117,456.78",INTEGRITY RESEARCH AND CONSULTANCY LTD,Programme Spend (Oracle Projects Control Account)
FCO,FCO,30/11/2021,11446974,"116,321.00",JRR ASSOCIATION,Programme Spend (Oracle Projects Control Account)
FCO,FCO,19/11/2021,11433777,"116,139.32",INTERSERVE FM LTD,Multiple Accounts
FCO,FCO,26/11/2021,11443492,"116,010.67",OVERSEAS SUPPLY SERVICES LTD,Multiple Accounts
FCO,FCO,01/11/2021,11404145,"115,912.91",FCDO POSTS,Funding Overseas Posts
FCO,FCO,23/11/2021,11437592,"115,475.14",ADP,Multiple Accounts
FCO,FCO,15/11/2021,11425358,"115,189.51",HOTELLINE FOR TOURISTIC INVESTMENT LTD,Multiple Accounts
FCO,FCO,16/11/2021,11427190,"114,372.00",ROYAL UNITED SERVICES INSTITUTE FOR DEFENCE AND SECURITY STUDIES,Programme Spend (Oracle Projects Control Account)
FCO,FCO,05/11/2021,11411283,"114,364.21",DAI GLOBAL UK LTD,Programme Spend (Oracle Projects Control Account)
FCO,FCO,29/11/2021,11445464,"114,175.88",Pace Construction,Programme Spend (Oracle Projects Control Account)
FCO,FCO,29/11/2021,11445348,"113,554.45",PALLADIUM,Programme Spend (Oracle Projects Control Account)
FCO,FCO,04/11/2021,11409340,"113,034.72",SOFTWAREONE UK LTD,End User Software and Hardware
FCO,FCO,02/11/2021,11406479,"112,963.28",LEGAL AID SOCIETY,Programme Spend (Oracle Projects Control Account)
FCO,FCO,01/11/2021,11404033,"111,602.29",FCDO POSTS,Funding Overseas Posts
FCO,FCO,23/11/2021,11437573,"110,278.57",THE ROYAL BANK OF SCOTLAND,Children's Concessionary Journeys
FCO,FCO,11/11/2021,11420551,"110,012.00",INNOVATION AND INSIGHT FZE,Programme Spend (Oracle Projects Control Account)
FCO,FCO,03/11/2021,11407936,"109,668.63",GRADUATE INSTITUTE OF INTERNATIONAL STUDIES,Programme Spend (Oracle Projects Control Account)
FCO,FCO,25/11/2021,11441890,"109,148.74",HEALIX INTERNATIONAL LTD,Hospital/Specialist Treatment
FCO,FCO,30/11/2021,11446929,"108,968.26",GERRYS TRAVEL AGENCY PRIVATE LIMITED,Multiple Accounts
FCO,FCO,15/11/2021,11425958,"108,766.98",FCDO SERVICES,Construction Project more than 10k
FCO,FCO,02/11/2021,11406224,"108,703.53",FCDO POSTS,Funding Overseas Posts
FCO,FCO,25/11/2021,11441850,"107,887.84",THE HALO TRUST,Programme Spend (Oracle Projects Control Account)
FCO,FCO,04/11/2021,11410565,"107,837.81",ROCKY MOUNTAIN INSTITUTE,Programme Spend (Oracle Projects Control Account)
FCO,FCO,16/11/2021,11427161,"107,178.14",PETRETTI AND ASSOCIATES LLC,Repairs And Refurbishment: Works Residential
FCO,FCO,18/11/2021,11431278,"106,456.00",ICF CONSULTING SERVICES LIMITED,Programme Spend (Oracle Projects Control Account)
FCO,FCO,12/11/2021,11422362,"106,448.43",BANKERS ASSURANCE SAL,Multiple Accounts
FCO,FCO,19/11/2021,11433893,"106,278.39",INTERSERVE FM LTD,Construction Project more than 10k
FCO,FCO,22/11/2021,11435367,"105,898.25",SYNERGY CONSULTANCY LTD,Programme Spend (Oracle Projects Control Account)
FCO,FCO,19/11/2021,11433521,"103,697.45",CBRE LTD,Estates Management Services
FCO,FCO,29/11/2021,11445575,"102,915.46",ZINC NETWORK LIMITED,Programme Spend (Oracle Projects Control Account)
FCO,FCO,01/11/2021,11404168,"102,642.84",FCDO POSTS,Funding Overseas Posts
FCO,FCO,10/11/2021,11417874,"102,564.57",BAE SYSTEMS APPLIED INTELLIGENCE LIMITED,IT Management and Change
FCO,FCO,24/11/2021,11439203,"102,380.55",OROSTREAM INTERNATIONAL CONTRACTS LTD,Additions-Assets Under Construction (Oracle PA Control Account)
FCO,FCO,02/11/2021,11405878,"102,306.42",FCDO SERVICES,Multiple Accounts
FCO,FCO,10/11/2021,11417779,"102,195.14",ADP,Multiple Accounts
FCO,FCO,17/11/2021,11429537,"102,000.00",THE BIG CRAN COMPANY CIC,Inward visits to the UK and UK Conferences
FCO,FCO,25/11/2021,11442108,"101,844.00",ADAM SMITH INTERNATIONAL,Programme Spend (Oracle Projects Control Account)
FCO,FCO,25/11/2021,11441936,"101,800.00",FIRST CALL PARTNERS,Programme Spend (Oracle Projects Control Account)
FCO,FCO,05/11/2021,11411564,"100,898.02",TRANSAMERICA,Multiple Accounts
FCO,FCO,02/11/2021,11406221,"100,769.65",TRANSAMERICA,Multiple Accounts
FCO,FCO,18/11/2021,11431561,"100,549.79",OVE ARUP & PARTNERS LTD,Programme Spend (Oracle Projects Control Account)
FCO,FCO,12/11/2021,11422574,"100,227.10",ARK GROUP DMCC,Programme Spend (Oracle Projects Control Account)
FCO,FCO,09/11/2021,11415816,"100,000.00",UNITED NATIONS,Programme Spend (Oracle Projects Control Account)
FCO,FCO,10/11/2021,11418010,"99,839.89",DAI GLOBAL UK LTD,Programme Spend (Oracle Projects Control Account)
FCO,FCO,18/11/2021,11431292,"99,674.00",UNITED NATIONS POPULATION FUND,Programme Spend (Oracle Projects Control Account)
FCO,FCO,16/11/2021,11427231,"99,623.87",TRANSAMERICA,Multiple Accounts
FCO,FCO,01/11/2021,11403971,"99,097.48",PRICEWATERHOUSECOOPERS LLP,Programme Spend (Oracle Projects Control Account)
FCO,FCO,08/11/2021,11413452,"98,854.30",SAYARA INTERNATIONAL,Programme Spend (Oracle Projects Control Account)
FCO,FCO,02/11/2021,11405954,"98,319.29",BABCOCK VEHICLE ENGINEERING LTD,Additions-Assets Under Construction (Oracle PA Control Account)
FCO,FCO,02/11/2021,11405958,"98,319.29",BABCOCK VEHICLE ENGINEERING LTD,Additions-Assets Under Construction (Oracle PA Control Account)
FCO,FCO,02/11/2021,11405963,"98,319.29",BABCOCK VEHICLE ENGINEERING LTD,Additions-Assets Under Construction (Oracle PA Control Account)
FCO,FCO,26/11/2021,11443204,"96,629.90",GERRYS TRAVEL AGENCY PRIVATE LIMITED,Multiple Accounts
FCO,FCO,01/11/2021,11404159,"96,187.58",FCDO POSTS,Funding Overseas Posts
FCO,FCO,26/11/2021,11443194,"96,051.26",GERRYS TRAVEL AGENCY PRIVATE LIMITED,Multiple Accounts
FCO,FCO,16/11/2021,11427252,"95,884.40",Anderson Mori Tomotsone,Estates Management Services
FCO,FCO,01/11/2021,11404019,"95,659.11",FCDO POSTS,Funding Overseas Posts
FCO,FCO,11/11/2021,11421057,"95,616.86",FCDO POSTS,Funding Overseas Posts
FCO,FCO,25/11/2021,11440664,"95,608.60",DATACOM EMPLOYER SERVICES,Multiple Accounts
FCO,FCO,24/11/2021,11439430,"95,394.15",JLL PROPERTY CONSULTANTS PTE LTD,Multiple Accounts
FCO,FCO,08/11/2021,11413447,"95,280.62",SAYARA INTERNATIONAL,Programme Spend (Oracle Projects Control Account)
FCO,FCO,11/11/2021,11421076,"95,001.41",FCDO POSTS,Funding Overseas Posts
FCO,FCO,30/11/2021,11447047,"94,705.02",TRANSAMERICA,Multiple Accounts
FCO,FCO,21/11/2021,11434904,"94,665.12",AFRICAN SKIES LTD,Local Guards
FCO,FCO,09/11/2021,11415922,"93,891.00",GROUNDTRUTH CONSULTING LTD,Training
FCO,FCO,05/11/2021,11411305,"93,511.00",DAI GLOBAL UK LTD,Programme Spend (Oracle Projects Control Account)
FCO,FCO,01/11/2021,11404161,"93,498.23",FCDO POSTS,Funding Overseas Posts
FCO,FCO,19/11/2021,11432948,"93,481.44",FCDO SERVICES,IT Support
FCO,FCO,03/11/2021,11407591,"93,386.56",PRICEWATERHOUSECOOPERS LLP,Programme Spend (Oracle Projects Control Account)
FCO,FCO,01/11/2021,11403966,"93,154.03",AETNA,Multiple Accounts
FCO,FCO,30/11/2021,11447149,"92,781.50",FCDO SERVICES,IT Management and Change
FCO,FCO,01/11/2021,11404112,"92,435.86",FCDO SERVICES,Additions-Assets Under Construction (Oracle PA Control Account)
FCO,FCO,08/11/2021,11413392,"91,660.00",IOM INTERNATIONAL ORG FOR MIGRATION,Programme Spend (Oracle Projects Control Account)
FCO,FCO,03/11/2021,11407656,"91,129.00",OROSTREAM INTERNATIONAL CONTRACTS LTD,Additions-Assets Under Construction (Oracle PA Control Account)
FCO,FCO,29/11/2021,11445396,"91,082.22",CARDIFF UNIVERSITY,Programme Spend (Oracle Projects Control Account)
FCO,FCO,02/11/2021,11405764,"91,033.50",FCDO SERVICES,Construction Project more than 10k
FCO,FCO,15/11/2021,11425745,"90,780.00",SCOTTISH AND SOUTHERN ELECTRICITY NETWORKS,Inward visits to the UK and UK Conferences
FCO,FCO,25/11/2021,11442054,"90,317.69",PICKFORDS MOVE MANAGEMENT LTD,Heavy Baggage
FCO,FCO,16/11/2021,11427404,"90,239.00",GLOBAL DISINFORMATION INDEX,Programme Spend (Oracle Projects Control Account)
FCO,FCO,11/11/2021,11419718,"89,012.00",PARTNERSHIP FOR DIALOGUE AND DEVELOPMENT,Programme Spend (Oracle Projects Control Account)
FCO,FCO,10/11/2021,11418017,"88,885.13",ZINC NETWORK,Programme Spend (Oracle Projects Control Account)
FCO,FCO,25/11/2021,11442017,"87,720.00",FCDO SERVICES,Construction Project more than 10k
FCO,FCO,09/11/2021,11415927,"87,381.32",BUMBAS CONSTRUCTION,Programme Spend (Oracle Projects Control Account)
FCO,FCO,23/11/2021,11437390,"86,711.50",KPMG FIDUCIAIRE,Multiple Accounts
FCO,FCO,16/11/2021,11427931,"86,312.50",AVANADE UK LIMITED,IT Management and Change
FCO,FCO,18/11/2021,11431427,"86,258.02",JLL PROPERTY CONSULTANTS PTE LTD POE,FMCU POE Trust Account Debtor
FCO,FCO,01/11/2021,11404071,"84,616.69",FCDO POSTS,Funding Overseas Posts
FCO,FCO,01/11/2021,11404137,"84,600.72",FCDO POSTS,Funding Overseas Posts
FCO,FCO,04/11/2021,11409347,"84,375.00",Plexal City Limited,Programme Spend (Oracle Projects Control Account)
FCO,FCO,10/11/2021,11417878,"83,731.92",BAE SYSTEMS APPLIED INTELLIGENCE LIMITED,IT Management and Change
FCO,FCO,10/11/2021,11418401,"83,512.46",BRITISH TELECOM PLC,Multiple Accounts
FCO,FCO,23/11/2021,11437067,"83,066.97",BRITISH TELECOM PLC,Multiple Accounts
FCO,FCO,17/11/2021,11429362,"82,937.00",UNITED NATIONS,Programme Spend (Oracle Projects Control Account)
FCO,FCO,05/11/2021,11411366,"82,225.00",SIREN ASSOCIATES LTD,Programme Spend (Oracle Projects Control Account)
FCO,FCO,24/11/2021,11439639,"82,193.79",JLL PROPERTY CONSULTANTS PTE LTD POE,Multiple Accounts
FCO,FCO,30/11/2021,11447087,"82,193.01",HMRC HM REVENUE AND CUSTOMS,Consular Crisis Expenditure
FCO,FCO,11/11/2021,11420795,"82,173.96",GILBERT ASH LIMITED,Additions-Assets Under Construction (Oracle PA Control Account)
FCO,FCO,01/11/2021,11388121,"81,900.00",FCDO SERVICES,Multiple Accounts
FCO,FCO,01/11/2021,11404187,"81,889.99",FCDO POSTS,Funding Overseas Posts
FCO,FCO,22/11/2021,11435164,"81,640.66",GUANGDONG SERVICE OFFICE FOR FOREIGN ESTABLISHMENTS,Multiple Accounts
FCO,FCO,25/11/2021,11442107,"81,597.00",ADAM SMITH INTERNATIONAL,Programme Spend (Oracle Projects Control Account)
FCO,FCO,04/11/2021,11409523,"80,006.16",HUMANIS,Multiple Accounts
FCO,FCO,04/11/2021,11409470,"80,000.00",IOM INTERNATIONAL ORG FOR MIGRATION,Programme Spend (Oracle Projects Control Account)
FCO,FCO,29/11/2021,11446693,"79,914.04",VANUATU GOVERNMENT DEVELOPMENT FUND,Programme Spend (Oracle Projects Control Account)
FCO,FCO,25/11/2021,11441913,"79,836.86",ABROTEA BULGARIA AD,Rental Payments - non residential
FCO,FCO,24/11/2021,11439163,"79,604.81",WAYFAIR LLC,"Purchase of Furniture, Fittings and Domestic Appliances"
FCO,FCO,19/11/2021,11433920,"79,146.42",INTERSERVE FM LTD,Multiple Accounts
FCO,FCO,01/11/2021,11404250,"78,840.25",PALLADIUM,Programme Spend (Oracle Projects Control Account)
FCO,FCO,02/11/2021,11405983,"77,699.78",FCDO SERVICES,Additions-Assets Under Construction (Oracle PA Control Account)
FCO,FCO,25/11/2021,11442010,"77,561.12",FCDO SERVICES,Construction Project more than 10k
FCO,FCO,10/11/2021,11417976,"77,086.08",BAE SYSTEMS APPLIED INTELLIGENCE LIMITED,IT Management and Change
FCO,FCO,01/11/2021,11404076,"77,001.18",FCDO POSTS,Funding Overseas Posts
FCO,FCO,17/11/2021,11429386,"77,000.00",ERNST AND YOUNG LLP,Organisation and Change Management Consultancy
FCO,FCO,17/11/2021,11429295,"76,646.31",FCDO SERVICES,IT Support
FCO,FCO,02/11/2021,11427180,"76,459.73",THE ROYAL BANK OF SCOTLAND,Corporate Credit Card Clearing Account
FCO,FCO,17/11/2021,11429252,"76,383.30",PROJECT 5 INTERNATIONAL LTD,"Purchase of Furniture, Fittings and Domestic Appliances"
FCO,FCO,24/11/2021,11439375,"75,417.09",JLL PROPERTY CONSULTANTS PTE LTD,Multiple Accounts
FCO,FCO,03/11/2021,11407639,"75,388.63",SEARCH FOR COMMON GROUND,Programme Spend (Oracle Projects Control Account)
FCO,FCO,19/11/2021,11433541,"75,203.00",COMPUTACENTER UK LTD,Additions-Assets Under Construction (Oracle PA Control Account)
FCO,FCO,15/11/2021,11425596,"75,199.86",INTERNTL COMMISSION MISSING PERSONS,Programme Spend (Oracle Projects Control Account)
FCO,FCO,25/11/2021,11442070,"75,137.40",GOVERNMENT LEGAL DEPARTMENT,Programme Spend (Oracle Projects Control Account)
FCO,FCO,04/11/2021,11409414,"75,000.00",GLASGOW HARBOUR LTD,Inward visits to the UK and UK Conferences
FCO,FCO,02/11/2021,11405858,"74,841.00",FCDO SERVICES,IT Management and Change
FCO,FCO,24/11/2021,11439635,"74,518.30",JLL PROPERTY CONSULTANTS PTE LTD POE,Multiple Accounts
FCO,FCO,16/11/2021,11427189,"74,488.00",THE HALO TRUST,Programme Spend (Oracle Projects Control Account)
FCO,FCO,03/11/2021,11407860,"74,175.00",DELOITTE AND TOUCHE LLP,Organisation and Change Management Consultancy
FCO,FCO,19/11/2021,11433495,"74,167.51",EUROPEAN BANKING AUTHORITY,Protocol - General VAT Refunds to Other Organisations
FCO,FCO,18/11/2021,11431507,"73,186.13",Agencia Consulting Limited,Programme Spend (Oracle Projects Control Account)
FCO,FCO,23/11/2021,11437154,"73,129.50",BHC INDIA STAFF PROVIDENT FUND,Multiple Accounts
FCO,FCO,04/11/2021,11409558,"73,044.83",INTERNATIONAL MARITIME ORGANIZATION,Protocol - General VAT Refunds to Other Organisations
FCO,FCO,16/11/2021,11427423,"73,018.02",ABIOT ASSOCIATES LTD,Fuel Oil Non-Residential
FCO,FCO,26/11/2021,11443868,"72,392.13",PA CONSULTING GROUP,Programme Spend (Oracle Projects Control Account)
FCO,FCO,24/11/2021,11439535,"72,098.37",JLL PROPERTY CONSULTANTS PTE LTD,Multiple Accounts
FCO,FCO,08/11/2021,11413587,"72,074.65",Agencia Consulting Limited,Programme Spend (Oracle Projects Control Account)
FCO,FCO,23/11/2021,11437288,"71,821.63",FCDO SERVICES,Air Freight Dip Bags - Freight & Clearance Charges
FCO,FCO,05/11/2021,11411427,"71,675.00",CAUTION YOUR BLAST LTD,Additions-Assets Under Construction (Oracle PA Control Account)
FCO,FCO,25/11/2021,11442111,"71,629.00",CBRE LTD,Proceeds from Assets held for sale
FCO,FCO,11/11/2021,11420488,"71,596.50",AXIOM INTERNATIONAL LTD,Programme Spend (Oracle Projects Control Account)
FCO,FCO,19/11/2021,11433760,"71,537.48",INTERSERVE FM LTD,Construction Project more than 10k
FCO,FCO,01/11/2021,11404134,"71,478.69",FCDO POSTS,Funding Overseas Posts
FCO,FCO,01/11/2021,11404176,"70,395.00",FCDO POSTS,Funding Overseas Posts
FCO,FCO,30/11/2021,11446992,"70,281.97",BVI INTERNATIONAL ARBITRATION CENTRE,Programme Spend (Oracle Projects Control Account)
FCO,FCO,25/11/2021,11442179,"70,142.00",HOME OFFICE,Programme Spend (Oracle Projects Control Account)
FCO,FCO,17/11/2021,11429351,"70,076.86",LEGAL AND GENERAL ASSURANCE SOCIETY LTD,Additional Volunteer Contribution
FCO,FCO,25/11/2021,11442048,"70,050.70",PICKFORDS MOVE MANAGEMENT LTD,Heavy Baggage
FCO,FCO,22/11/2021,11435319,"69,966.53",WESTMINSTER FOUNDATION FOR DEMOCRACY,Programme Spend (Oracle Projects Control Account)
FCO,FCO,23/11/2021,11437061,"69,269.50",OEGK OESTERR GESUNDHEITSKASSE,Multiple Accounts
FCO,FCO,30/11/2021,11447191,"69,223.94",FCDO SERVICES,Construction Project more than 10k
FCO,FCO,15/11/2021,11425571,"68,583.28",CHINA ELECTRIC POWER PLANNING AND ENGINEERING INSTITUTE CO LTD,Programme Spend (Oracle Projects Control Account)
FCO,FCO,19/11/2021,11432923,"68,446.48",INSTITUTO DE GESTAO FINANCEIRA DA SEGURANCA SOCIAL,Multiple Accounts
FCO,FCO,03/11/2021,11407382,"68,078.33",GERRYS TRAVEL AGENCY PRIVATE LIMITED,Multiple Accounts
FCO,FCO,24/11/2021,11439511,"68,059.15",JLL PROPERTY CONSULTANTS PTE LTD,Multiple Accounts
FCO,FCO,17/11/2021,11429420,"67,910.01",GET SAFE ONLINE,Programme Spend (Oracle Projects Control Account)
FCO,FCO,25/11/2021,11442042,"67,591.54",PICKFORDS MOVE MANAGEMENT LTD,Heavy Baggage
FCO,FCO,17/11/2021,11429833,"67,532.28",FCDO POSTS,Funding Overseas Posts
FCO,FCO,05/11/2021,11411300,"67,513.00",DAI GLOBAL UK LTD,Programme Spend (Oracle Projects Control Account)
FCO,FCO,01/11/2021,11404036,"67,412.13",FCDO POSTS,Funding Overseas Posts
FCO,FCO,09/11/2021,11415956,"67,324.95",KOIZA INTERNATIONAL LTD,"Purchase of Furniture, Fittings and Domestic Appliances"
FCO,FCO,19/11/2021,11432643,"67,209.76",GERRYS TRAVEL AGENCY PRIVATE LIMITED,Multiple Accounts
FCO,FCO,10/11/2021,11417875,"66,996.92",BAE SYSTEMS APPLIED INTELLIGENCE LIMITED,IT Management and Change
FCO,FCO,05/11/2021,11410938,"66,706.48",BRIGHT HORIZONS FAMILY SOLUTION LTD,FCO KCS Nursery
FCO,FCO,04/11/2021,11409376,"66,399.04",JOHN SMITH MEMORIAL TRUST,Programme Spend (Oracle Projects Control Account)
FCO,FCO,08/11/2021,11413314,"65,842.62",STADIUM MANAGEMENT LTD,Vehicle Hire
FCO,FCO,30/11/2021,11447337,"65,742.96",INTERNATIONAL CENTRE FOR MIGRATION POLICY DEVELOPMENT,Programme Spend (Oracle Projects Control Account)
FCO,FCO,16/11/2021,11427493,"65,656.81",AIR EXPERT INDIA,Multiple Accounts
FCO,FCO,06/11/2021,11412247,"65,441.00",DESBRO HOLDINGS KENYA LTD,Rental Payments - residential
FCO,FCO,11/11/2021,11419998,"65,156.88",INNOVATE UK,Programme Spend (Oracle Projects Control Account)
FCO,FCO,04/11/2021,11409547,"64,758.91",INTERNATIONAL MARITIME ORGANIZATION,Protocol - General VAT Refunds to Other Organisations
FCO,FCO,03/11/2021,11407772,"64,436.84",PDP PROJECTS LIMITED,Unscheduled repairs to building infrastructure
FCO,FCO,11/11/2021,11420612,"64,388.30",AETNA,Multiple Accounts
FCO,FCO,24/11/2021,11439638,"64,067.86",JLL PROPERTY CONSULTANTS PTE LTD POE,Multiple Accounts
FCO,FCO,10/11/2021,11418708,"63,842.58",BMATT,Recharge Suspense Account (Oracle PA Control Account)
FCO,FCO,02/11/2021,11405755,"63,762.17",FCDO SERVICES,Additions-Assets Under Construction (Oracle PA Control Account)
FCO,FCO,02/11/2021,11406046,"63,509.80",FCDO SERVICES,Programme Spend (Oracle Projects Control Account)
FCO,FCO,11/11/2021,11420196,"63,214.86",THE BRITISH RUSSIAN CENTRE AND THE BRITISH EAST WEST CENTRE,Programme Spend (Oracle Projects Control Account)
FCO,FCO,23/11/2021,11437375,"63,201.87",KPMG FIDUCIAIRE,Multiple Accounts
FCO,FCO,12/11/2021,11423022,"63,021.20",ATKINS LTD,Additions-Assets Under Construction (Oracle PA Control Account)
FCO,FCO,09/11/2021,11415840,"62,794.74",TETRA TECH INTERNATIONAL DEVELOPMENT,Programme Spend (Oracle Projects Control Account)
FCO,FCO,16/11/2021,11427379,"62,254.61","ORCHARD, ROMNEY, BECK & ASSOC INC",Programme Spend (Oracle Projects Control Account)
FCO,FCO,15/11/2021,11425170,"62,191.00",NIS FOUNDATION,Programme Spend (Oracle Projects Control Account)
FCO,FCO,29/11/2021,11445588,"61,682.06",ADAM SMITH INTERNATIONAL,Programme Spend (Oracle Projects Control Account)
FCO,FCO,23/11/2021,11437302,"61,215.52",HEALIX INTERNATIONAL LTD,Hospital/Specialist Treatment
FCO,FCO,05/11/2021,11410874,"61,075.00",CAUTION YOUR BLAST LTD,Additions-Assets Under Construction (Oracle PA Control Account)
FCO,FCO,23/11/2021,11437366,"61,000.00",COMPASS SERVICES UK LTD,Catering Services
FCO,FCO,26/11/2021,11443199,"60,819.90",GERRYS TRAVEL AGENCY PRIVATE LIMITED,Multiple Accounts
FCO,FCO,03/11/2021,11407597,"60,448.79",THE GLOBAL STRATEGY NETWORK,Programme Spend (Oracle Projects Control Account)
FCO,FCO,30/11/2021,11447187,"60,444.32",CHINA ACADEMY OF LABOUR AND SOCIAL SECURITY,Programme Spend (Oracle Projects Control Account)
FCO,FCO,02/11/2021,11405927,"60,288.16",FCDO SERVICES,Air Freight Dip Bags - Freight & Clearance Charges
FCO,FCO,17/11/2021,11429164,"60,249.47",SOUTH REVENUE SERVICE,Multiple Accounts
FCO,FCO,04/11/2021,11409488,"59,955.00",ALINEA INTERNATIONAL LIMITED,Programme Spend (Oracle Projects Control Account)
FCO,FCO,04/11/2021,11409439,"59,884.00","AMMUNITION MANAGEMENT ADVISORY TEAM, GENEVA INTERNATIONAL CENTRE",Programme Spend (Oracle Projects Control Account)
FCO,FCO,29/11/2021,11445564,"59,861.26",TETRA TECH MANAGEMENT SERVICES LIMITED,Additions-Assets Under Construction (Oracle PA Control Account)
FCO,FCO,05/11/2021,11411095,"59,822.00",INTERNATIONAL ALERT,Programme Spend (Oracle Projects Control Account)
FCO,FCO,11/11/2021,11420046,"59,581.21",RIDGE AND PARTNERS LLP,Additions-Assets Under Construction (Oracle PA Control Account)
FCO,FCO,03/11/2021,11407911,"59,209.09",TETRA TECH MANAGEMENT SERVICES LIMITED,Programme Spend (Oracle Projects Control Account)
FCO,FCO,25/11/2021,11442176,"58,981.00",HOME OFFICE,Programme Spend (Oracle Projects Control Account)
FCO,FCO,18/11/2021,11431106,"58,961.48",BREATHEEASY CONSULTANTS PRIVATE LIMITED,Multiple Accounts
FCO,FCO,19/11/2021,11433776,"58,852.48",INTERSERVE FM LTD,Construction Project more than 10k
FCO,FCO,23/11/2021,11437146,"58,779.00",SSK,Multiple Accounts
FCO,FCO,19/11/2021,11433734,"58,547.04",INTERSERVE FM LTD,Multiple Accounts
FCO,FCO,23/11/2021,11437644,"58,288.84",THE ROYAL BANK OF SCOTLAND,Multiple Accounts
FCO,FCO,23/11/2021,11437336,"58,119.98",COMMONWEALTH SECRETARIAT,Programme Spend (Oracle Projects Control Account)
FCO,FCO,01/11/2021,11404029,"57,975.22",FCDO POSTS,Funding Overseas Posts
FCO,FCO,01/11/2021,11404021,"57,830.28",FCDO POSTS,Funding Overseas Posts
FCO,FCO,02/11/2021,11405624,"57,701.26",CAISSE NATIONALE DE SECU SOCIA,Multiple Accounts
FCO,FCO,25/11/2021,11442403,"57,529.96",BMATT,Recharge Suspense Account (Oracle PA Control Account)
FCO,FCO,09/11/2021,11416044,"57,471.80",UNITED NATIONS,Programme Spend (Oracle Projects Control Account)
FCO,FCO,01/11/2021,11404135,"57,423.74",FCDO POSTS,Funding Overseas Posts
FCO,FCO,29/11/2021,11445361,"56,659.25",TETRA TECH MANAGEMENT SERVICES LIMITED,Additions-Assets Under Construction (Oracle PA Control Account)
FCO,FCO,19/11/2021,11433648,"56,587.48",JLL PROPERTY CONSULTANTS PTE LTD POE,Multiple Accounts
FCO,FCO,05/11/2021,11411374,"56,484.41",PICKFORDS MOVE MANAGEMENT LTD,Heavy Baggage
FCO,FCO,09/11/2021,11415929,"56,250.00",NEWS UK,Newspapers
FCO,FCO,24/11/2021,11439627,"56,077.65",JLL PROPERTY CONSULTANTS PTE LTD POE,Multiple Accounts
FCO,FCO,23/11/2021,11437186,"56,057.68",TETRA TECH INTERNATIONAL DEVELOPMENT BV,Programme Spend (Oracle Projects Control Account)
FCO,FCO,08/11/2021,11413273,"55,883.91",RESTORE PLC,Specialist Contractors
FCO,FCO,19/11/2021,11433892,"55,671.92",INTERSERVE FM LTD,Construction Project more than 10k
FCO,FCO,29/11/2021,11445306,"55,652.79",WESTMINSTER FOUNDATION FOR DEMOCRACY,Programme Spend (Oracle Projects Control Account)
FCO,FCO,19/11/2021,11433858,"55,477.94",INTERSERVE FM LTD,Additions-Assets Under Construction (Oracle PA Control Account)
FCO,FCO,18/11/2021,11431428,"55,465.75",WALSONS SERVICES PVT LTD,Local Guards
FCO,FCO,24/11/2021,11439032,"55,390.31",FCDO SERVICES,Construction Project more than 10k
FCO,FCO,02/11/2021,11405890,"54,999.98",FCDO SERVICES,Air Freight Dip Bags - Freight & Clearance Charges
FCO,FCO,05/11/2021,11411423,"54,678.45",DX NETWORK SERVICES,Postal Services
FCO,FCO,23/11/2021,11437261,"54,626.88",FCDO SERVICES,Multiple Accounts
FCO,FCO,26/11/2021,11443207,"54,458.74",GERRYS TRAVEL AGENCY PRIVATE LIMITED,Multiple Accounts
FCO,FCO,23/11/2021,11437317,"54,407.90",FCDO SERVICES,Additions-Assets Under Construction (Oracle PA Control Account)
FCO,FCO,03/11/2021,11408075,"53,776.18",REDR AUSTRALIA,Programme Spend (Oracle Projects Control Account)
FCO,FCO,29/11/2021,11445586,"53,759.00",INNOVATION AND INSIGHT FZE,Programme Spend (Oracle Projects Control Account)
FCO,FCO,19/11/2021,11433646,"53,246.01",JLL PROPERTY CONSULTANTS PTE LTD POE,Multiple Accounts
FCO,FCO,23/11/2021,11437084,"52,815.23",BEIS DEPARTMENT FOR BUSINESS ENERGY AND INDUSTRIAL STRATEGY,Programme Spend (Oracle Projects Control Account)
FCO,FCO,22/11/2021,11435309,"52,703.53",SISTEMA INTEGRADO MULTIPLE DE PAGOS,Multiple Accounts
FCO,FCO,08/11/2021,11413236,"52,516.20",ERNST AND YOUNG LLP,Programme Spend (Oracle Projects Control Account)
FCO,FCO,12/11/2021,11422538,"52,443.00",DELOITTE AND TOUCHE LLP,Programme Spend (Oracle Projects Control Account)
FCO,FCO,26/11/2021,11443577,"52,263.57",BELASTINGDIENST CENTRALE ADMINISTRATIE TE APELDOORN,Multiple Accounts
FCO,FCO,26/11/2021,11443484,"52,144.97",ICTS ITALIA SRL,Local Guards
FCO,FCO,03/11/2021,11407820,"52,078.05",ORACLE CORPORATION (UK) LTD,IT Hosting
FCO,FCO,01/11/2021,11404209,"51,641.56",PICKFORDS MOVE MANAGEMENT LTD,Heavy Baggage
FCO,FCO,23/11/2021,11437216,"51,618.42",FCDO SERVICES,Air Freight Dip Bags - Freight & Clearance Charges
FCO,FCO,30/11/2021,11447320,"51,616.18",SAVINI POWERTECH DI SAVINI,Construction Project more than 10k
FCO,FCO,01/11/2021,11404053,"51,523.18",TETRA TECH MANAGEMENT SERVICES LIMITED,Additions-Assets Under Construction (Oracle PA Control Account)
FCO,FCO,09/11/2021,11415773,"50,790.02",MAZARS CINOTTI ACCOUNTING DOO,Multiple Accounts
FCO,FCO,01/11/2021,11404026,"50,728.31",FCDO POSTS,Funding Overseas Posts
FCO,FCO,18/11/2021,11431707,"50,554.00",ASSABEL,Programme Spend (Oracle Projects Control Account)
FCO,FCO,25/11/2021,11442061,"50,541.17",SECURITAS SAC,Local Guards
FCO,FCO,02/11/2021,11405820,"50,400.14",FCDO SERVICES,Construction Project more than 10k
FCO,FCO,02/11/2021,11405992,"50,042.07",FCDO SERVICES,Additions-Assets Under Construction (Oracle PA Control Account)
FCO,FCO,10/11/2021,11418049,"50,000.00",UNITED NATIONS,Programme Spend (Oracle Projects Control Account)
FCO,FCO,11/11/2021,11420095,"50,000.00",CHASE PARTNERS LTD,Temporary Staff (Admin and Clerical Only)
FCO,FCO,11/11/2021,11420524,"50,000.00",HISTORY HIT,Programme Spend (Oracle Projects Control Account)
FCO,FCO,25/11/2021,11442076,"50,000.00",UNITED NATIONS OFFICE ON DRUGS AND CRIME,Programme Spend (Oracle Projects Control Account)
FCO,FCO,25/11/2021,11442157,"49,631.81",HEALIX INTERNATIONAL LTD,Hospital/Specialist Treatment
FCO,FCO,09/11/2021,11416101,"49,492.00",THE BRITISH COUNCIL,Programme Spend (Oracle Projects Control Account)
FCO,FCO,15/11/2021,11425192,"49,323.28",ABK INVESTMENTS LLC,Rental Payments - residential
FCO,FCO,10/11/2021,11417776,"49,177.98",SALTERTON ASSOCIATES,Programme Spend (Oracle Projects Control Account)
FCO,FCO,04/11/2021,11409424,"48,977.83",UNITED NATIONS,Programme Spend (Oracle Projects Control Account)
FCO,FCO,03/11/2021,11407835,"48,836.95",AXIOM INTERNATIONAL LTD,Programme Spend (Oracle Projects Control Account)
FCO,FCO,18/11/2021,11431331,"48,365.44",THE GLOBAL STRATEGY NETWORK,Programme Spend (Oracle Projects Control Account)
FCO,FCO,03/11/2021,11407570,"48,264.04",MEDICINES AND HEALTHCARE PRODUCTS REGULATORY AGENCY (MHRA),Programme Spend (Oracle Projects Control Account)
FCO,FCO,23/11/2021,11437184,"48,122.89",ACCOUNTING SOLUTIONS,Multiple Accounts
FCO,FCO,23/11/2021,11437242,"48,074.14",JONES LANG LASALLE,Multiple Accounts
FCO,FCO,09/11/2021,11415831,"47,925.90",THE BRITISH COUNCIL,Programme Spend (Oracle Projects Control Account)
FCO,FCO,01/11/2021,11404037,"47,908.54",FCDO POSTS,Funding Overseas Posts
FCO,FCO,04/11/2021,11409675,"47,875.00",CAUTION YOUR BLAST LTD,Additions-Assets Under Construction (Oracle PA Control Account)
FCO,FCO,02/11/2021,11406309,"47,838.25",WEPRO,Recharge Suspense Account (Oracle PA Control Account)
FCO,FCO,19/11/2021,11432983,"47,821.32",CABINET OFFICE,Programme Spend (Oracle Projects Control Account)
FCO,FCO,26/11/2021,11443200,"47,525.39",GERRYS TRAVEL AGENCY PRIVATE LIMITED,Multiple Accounts
FCO,FCO,24/11/2021,11439832,"47,468.01",PILGRIMS AFRICA LTD,Local Guards
FCO,FCO,25/11/2021,11443016,"47,350.35",FIRST GULF PROPERTIES,Rental Payments - residential
FCO,FCO,09/11/2021,11416119,"46,983.60",BAE SYSTEMS APPLIED INTELLIGENCE LIMITED,IT Management and Change
FCO,FCO,02/11/2021,11405738,"46,864.05",FCDO SERVICES,Construction Project more than 10k
FCO,FCO,19/11/2021,11432878,"46,715.70",MICROSOFT LIMITED,Multiple Accounts
FCO,FCO,03/11/2021,11407676,"46,463.26",HAMPSHIRE POLICE AUTHORITY,Programme Spend (Oracle Projects Control Account)
FCO,FCO,23/11/2021,11437248,"46,348.85",FCDO SERVICES,Air Freight Dip Bags - Freight & Clearance Charges
FCO,FCO,24/11/2021,11439631,"46,313.74",JLL PROPERTY CONSULTANTS PTE LTD POE,Multiple Accounts
FCO,FCO,23/11/2021,11437126,"46,124.32",SSK,Multiple Accounts
FCO,FCO,25/11/2021,11441831,"46,059.98",SOCIAL SECURITY CONTRIBTN AUTHORITY,Multiple Accounts
FCO,FCO,17/11/2021,11429693,"45,500.43",IMSS,Multiple Accounts
FCO,FCO,19/11/2021,11433744,"45,462.26",INTERSERVE FM LTD,Construction Project more than 10k
FCO,FCO,22/11/2021,11435338,"45,424.31",SYNERGY CONSULTANCY LTD,Programme Spend (Oracle Projects Control Account)
FCO,FCO,23/11/2021,11437196,"45,406.67",ACCOUNTING SOLUTIONS,Multiple Accounts
FCO,FCO,15/11/2021,11425605,"45,355.19",COMPUTACENTER UK LTD,IT Management and Change
FCO,FCO,03/11/2021,11427180,"45,218.70",THE ROYAL BANK OF SCOTLAND,Corporate Credit Card Clearing Account
FCO,FCO,09/11/2021,11415949,"44,915.76",AXIOM INTERNATIONAL LTD,Programme Spend (Oracle Projects Control Account)
FCO,FCO,29/11/2021,11445256,"44,720.39",AXA WINTERTHUR,Multiple Accounts
FCO,FCO,29/11/2021,11445590,"44,563.63",PALLADIUM,Programme Spend (Oracle Projects Control Account)
FCO,FCO,04/11/2021,11409373,"44,543.00",THE BRITISH COUNCIL,Programme Spend (Oracle Projects Control Account)
FCO,FCO,24/11/2021,11439641,"44,495.67",JLL PROPERTY CONSULTANTS PTE LTD POE,Multiple Accounts
FCO,FCO,19/11/2021,11433762,"44,479.17",INTERSERVE FM LTD,Construction Project more than 10k
FCO,FCO,11/11/2021,11421107,"44,471.78",FCDO POSTS,Funding Overseas Posts
FCO,FCO,01/11/2021,11404038,"44,206.10",FCDO POSTS,Funding Overseas Posts
FCO,FCO,19/11/2021,11433029,"44,181.95",AETNA,Multiple Accounts
FCO,FCO,19/11/2021,11433751,"44,133.50",INTERSERVE FM LTD,Construction Project more than 10k
FCO,FCO,15/11/2021,11425881,"44,104.81",FCDO POSTS,Funding Overseas Posts
FCO,FCO,23/11/2021,11437224,"44,085.22",FLYFORM LTD,End User Software and Hardware
FCO,FCO,03/11/2021,11407725,"44,025.95",GRDI EUROPE LTD,Inward visits to the UK and UK Conferences
FCO,FCO,04/11/2021,11408914,"43,971.72",ACTIONAID NIGERIA,Programme Spend (Oracle Projects Control Account)
FCO,FCO,11/11/2021,11420490,"43,812.75",COMMONWEALTH PARLIAMENTARY ASSOCIATION,Programme Spend (Oracle Projects Control Account)
FCO,FCO,17/11/2021,11429160,"43,686.16",DISCOVERY MEDICAL AID,Multiple Accounts
FCO,FCO,23/11/2021,11437148,"43,633.15",GOVERNMENT COMMUNICATIONS BUREAU ADMIN A/C 6253,Customer Refund Account
FCO,FCO,30/11/2021,11447108,"43,630.63",IIZUKA,IT Hosting
FCO,FCO,04/11/2021,11408791,"43,481.41",IQB CASHBOX TOP-UP,Inter Account Transfer (Cash in Transit)
FCO,FCO,24/11/2021,11439046,"43,481.41",ACCOMMODATION PROVIDER,Rental Payments - residential
FCO,FCO,19/11/2021,11433296,"43,363.51",TRESOR PUBLIC,Multiple Accounts
FCO,FCO,03/11/2021,11407367,"43,292.88",G4S SECURE SOLUTIONS,Local Guards
FCO,FCO,12/11/2021,11422510,"43,153.15",RANGER PROTECTION AND SECURITY COMPANY LTD,Local Guards
FCO,FCO,25/11/2021,11442021,"43,126.00",FCDO SERVICES,Construction Project more than 10k
FCO,FCO,22/11/2021,11435288,"42,845.00",TETRA TECH MANAGEMENT SERVICES LIMITED,Repairs And Refurbishment: Works Residential
FCO,FCO,22/11/2021,11435372,"42,814.33",FCDO SERVICES,Air Freight Dip Bags - Freight & Clearance Charges
FCO,FCO,23/11/2021,11437201,"42,791.80",CAISSE CANTONALE GENEVOISE COMPEN,Multiple Accounts
FCO,FCO,02/11/2021,11427330,"42,642.56",THE ROYAL BANK OF SCOTLAND,Travel Package Advance Overseas Posting (Credit Card Payments Only)
FCO,FCO,29/11/2021,11445117,"42,617.78",FIRST GULF PROPERTIES,Multiple Accounts
FCO,FCO,05/11/2021,11411400,"42,574.24",WORLDWIDE REPORTING LLP,Programme Spend (Oracle Projects Control Account)
FCO,FCO,22/11/2021,11435361,"42,463.80",FCDO SERVICES,Air Freight Dip Bags - Freight & Clearance Charges
FCO,FCO,11/11/2021,11422121,"42,452.64",CHINA ASSOCIATION OF AUTOMOBILE MANUFACTURERS,Programme Spend (Oracle Projects Control Account)
FCO,FCO,16/11/2021,11427119,"42,406.45",TEAM 3 LIMITED,Local Guards
FCO,FCO,11/11/2021,11421056,"42,308.34",FCDO POSTS,Funding Overseas Posts
FCO,FCO,25/11/2021,11442155,"42,294.00",WESTMINSTER CITY COUNCIL,Rates Taxes Non-Residential
FCO,FCO,17/11/2021,11429315,"42,025.95",GRDI EUROPE LTD,Inward visits to the UK and UK Conferences
FCO,FCO,19/11/2021,11432743,"42,015.88",SOCIAL INSURANCE ORGANISATION,Multiple Accounts
FCO,FCO,11/11/2021,11420482,"41,974.61",AXIOM INTERNATIONAL LTD,Programme Spend (Oracle Projects Control Account)
FCO,FCO,23/11/2021,11436997,"41,886.24",CONTRIBUTORY PROVIDENT FUND,Multiple Accounts
FCO,FCO,30/11/2021,11447033,"41,827.43",COMPUTACENTER UK LTD,IT/IS Consultancy
FCO,FCO,16/11/2021,11427201,"41,670.00",HMRC HM REVENUE AND CUSTOMS,Programme Spend (Oracle Projects Control Account)
FCO,FCO,30/11/2021,11447074,"41,648.84",HMRC HM REVENUE AND CUSTOMS,Consular Crisis Expenditure
FCO,FCO,25/11/2021,11441797,"41,399.63",ELMI OLINDO CONTRACTORS PLC,Additions-Assets Under Construction (Oracle PA Control Account)
FCO,FCO,05/11/2021,11410712,"41,120.00",SHEFFIELD HALLAM UNIVERSITY,Programme Spend (Oracle Projects Control Account)
FCO,FCO,01/11/2021,11404077,"41,039.09",FCDO POSTS,Funding Overseas Posts
FCO,FCO,12/11/2021,11422547,"40,907.84",LIONS HEAD GLOBAL PARTNERS18 LTD,Programme Spend (Oracle Projects Control Account)
FCO,FCO,23/11/2021,11438566,"40,465.61",CHERRY HILL INTERIORS PVT LTD,Additions-Assets Under Construction (Oracle PA Control Account)
FCO,FCO,01/11/2021,11404221,"40,389.06",BENNETT CONSTRUCTION COMPANY LTD,Programme Spend (Oracle Projects Control Account)
FCO,FCO,05/11/2021,11411129,"40,310.26",BEDER,Programme Spend (Oracle Projects Control Account)
FCO,FCO,25/11/2021,11440956,"40,292.69",HARIS ENTERPRISES PVT LTD,Local Guards
FCO,FCO,12/11/2021,11422471,"40,273.86",TIBIYO LEISURE RESORTS T/A THE ROYAL VILLAS,Rental Payments - residential
FCO,FCO,19/11/2021,11433937,"40,146.70",INTERSERVE FM LTD,Multiple Accounts
FCO,FCO,24/11/2021,11439038,"40,120.00",BELLS POWER SERVICES LTD,Property Maintenance Overseas Non Residential
FCO,FCO,29/11/2021,11445527,"40,000.00",JOINT NATURE CONSERVATION COMMITTEE (JNCC) SUPPORT CO,Programme Spend (Oracle Projects Control Account)
FCO,FCO,12/11/2021,11423035,"39,950.00",ELEPHANTS DONT FORGET,IT Hosting
FCO,FCO,17/11/2021,11429154,"39,938.53",ALEXANDER FORBES LIFE,Multiple Accounts
FCO,FCO,25/11/2021,11442169,"39,855.73",INSTITUTE OF LINGUISTS EDUCATIONAL TRUST,Language Exams (excl Hays)
FCO,FCO,04/11/2021,11409355,"39,800.00",CAUTION YOUR BLAST LTD,Additions-Assets Under Construction (Oracle PA Control Account)
FCO,FCO,02/11/2021,11405951,"39,729.35",CAPGEMINI UK PLC,IT/IS Consultancy
FCO,FCO,05/11/2021,11411495,"39,702.43",AIRBUS DEFENCE AND SPACE,Additions-Assets Under Construction (Oracle PA Control Account)
FCO,FCO,15/11/2021,11425364,"39,660.12",WEPRO,Recharge Suspense Account (Oracle PA Control Account)
FCO,FCO,03/11/2021,11407630,"39,552.55",Pace Construction,Programme Spend (Oracle Projects Control Account)
FCO,FCO,10/11/2021,11418304,"39,361.29",XOREX DE COLOMBIA SAS,Recharge Suspense Account (Oracle PA Control Account)
FCO,FCO,16/11/2021,11427227,"39,326.28",BAE SYSTEMS APPLIED INTELLIGENCE LIMITED,IT Management and Change
FCO,FCO,11/11/2021,11422122,"39,234.90",HOT POT CHINA,Programme Spend (Oracle Projects Control Account)
FCO,FCO,18/11/2021,11431794,"39,214.88",FCDO POSTS,Funding Overseas Posts
FCO,FCO,02/11/2021,11405923,"39,052.98",OKNYGAARD AS,Construction Project more than 10k
FCO,FCO,01/11/2021,11404178,"38,988.33",FCDO POSTS,Funding Overseas Posts
FCO,FCO,26/11/2021,11443788,"38,745.73",PICKFORDS MOVE MANAGEMENT LTD,Heavy Baggage
FCO,FCO,10/11/2021,11418270,"38,713.30",O2 UK LIMITED,Multiple Accounts
FCO,FCO,16/11/2021,11427142,"38,377.99",G4S SECURITY SERVICES UGANDA LTD,Local Guards
FCO,FCO,10/11/2021,11418005,"38,314.00",DAI GLOBAL UK LTD,Programme Spend (Oracle Projects Control Account)
FCO,FCO,29/11/2021,11445587,"38,225.76",ADAM SMITH INTERNATIONAL,Programme Spend (Oracle Projects Control Account)
FCO,FCO,01/11/2021,11404078,"38,077.51",FCDO POSTS,Funding Overseas Posts
FCO,FCO,19/11/2021,11432936,"37,938.26",FCDO SERVICES,IT Support
FCO,FCO,05/11/2021,11411094,"37,878.79",ACCOMMODATION PROVIDER,Rental Payments - residential
FCO,FCO,10/11/2021,11417925,"37,809.62",TONY GRAHAM MOTORS 1980 LTD,Additions-Assets Under Construction (Oracle PA Control Account)
FCO,FCO,02/11/2021,11405768,"37,808.96",FCDO SERVICES,Construction Project more than 10k
FCO,FCO,08/11/2021,11415348,"37,805.57",ACCOMMODATION PROVIDER,Rental Payments - residential
FCO,FCO,03/11/2021,11407662,"37,601.17",BERL KATZNELSON CENTER,Programme Spend (Oracle Projects Control Account)
FCO,FCO,17/11/2021,11429166,"37,288.40",ACCOMMODATION PROVIDER,Multiple Accounts
FCO,FCO,03/11/2021,11407788,"37,157.01",ITAD LTD,Programme Spend (Oracle Projects Control Account)
FCO,FCO,03/11/2021,11407601,"37,077.00",THE BRITISH COUNCIL,Programme Spend (Oracle Projects Control Account)
FCO,FCO,24/11/2021,11439025,"37,052.00",THE BRITISH COUNCIL,Programme Spend (Oracle Projects Control Account)
FCO,FCO,30/11/2021,11447290,"37,008.00",HMRC HM REVENUE AND CUSTOMS,Temporary Staff (Admin and Clerical Only)
FCO,FCO,10/11/2021,11418063,"37,006.00",BILAL RAWAT,Programme Spend (Oracle Projects Control Account)
FCO,FCO,26/11/2021,11443198,"37,003.96",GERRYS TRAVEL AGENCY PRIVATE LIMITED,Multiple Accounts
FCO,FCO,22/11/2021,11435693,"36,948.72",MINISTERIO DAS FINANCAS AT,Multiple Accounts
FCO,FCO,09/11/2021,11415943,"36,850.03",AXIOM INTERNATIONAL LTD,Programme Spend (Oracle Projects Control Account)
FCO,FCO,23/11/2021,11437265,"36,695.84",BRICKELL BAY TOWER LTD,Multiple Accounts
FCO,FCO,24/11/2021,11439453,"36,654.83",JLL PROPERTY CONSULTANTS PTE LTD,Construction Project more than 10k
FCO,FCO,19/11/2021,11433759,"36,641.78",INTERSERVE FM LTD,Construction Project more than 10k
FCO,FCO,19/11/2021,11433420,"36,567.81",INNOVATION AND INSIGHT FZE,Programme Spend (Oracle Projects Control Account)
FCO,FCO,26/11/2021,11443776,"36,279.22",PICKFORDS MOVE MANAGEMENT LTD,Heavy Baggage
FCO,FCO,30/11/2021,11447139,"36,255.62",AETNA,Multiple Accounts
FCO,FCO,30/11/2021,11446826,"36,252.61",NIMAR PROPERTIES LIMITED,Multiple Accounts
FCO,FCO,24/11/2021,11439533,"36,238.29",JLL PROPERTY CONSULTANTS PTE LTD,Multiple Accounts
FCO,FCO,01/11/2021,11404035,"36,234.51",FCDO POSTS,Funding Overseas Posts
FCO,FCO,16/11/2021,11427349,"36,115.93",COMPUTACENTER UK LTD,IT Management and Change
FCO,FCO,09/11/2021,11417293,"35,922.05",H L EDUCATION FOR PEACE,Programme Spend (Oracle Projects Control Account)
FCO,FCO,22/11/2021,11435277,"35,919.81",TETRA TECH MANAGEMENT SERVICES LIMITED,Repairs And Refurbishment: Works Residential
FCO,FCO,23/11/2021,11437535,"35,835.17",EDIFICIO SA,Staff and Other Advances AP Control (Oracle Ap Control Account)
FCO,FCO,24/11/2021,11439185,"35,818.10",IOM INTERNATIONAL ORG FOR MIGRATION,Programme Spend (Oracle Projects Control Account)
FCO,FCO,22/11/2021,11435134,"35,816.62",AFRICA CLIMATE MONITORING GROUP,Recharge Suspense Account (Oracle PA Control Account)
FCO,FCO,16/11/2021,11427270,"35,736.53",ENECO BELGIUM NV,Multiple Accounts
FCO,FCO,23/11/2021,11437342,"35,704.13",FCDO SERVICES,Additions-Assets Under Construction (Oracle PA Control Account)
FCO,FCO,05/11/2021,11411414,"35,623.74",DX NETWORK SERVICES,Postal Services
FCO,FCO,19/11/2021,11432662,"35,599.22",ACCOMMODATION PROVIDER,Rental Payments - residential
FCO,FCO,19/11/2021,11433799,"35,461.56",INTERSERVE FM LTD,Construction Project more than 10k
FCO,FCO,25/11/2021,11442097,"35,379.82",G4S SECURE SOLUTIONS INT JORDAN,Local Guards
FCO,FCO,18/11/2021,11431541,"35,364.88",CELLEBRITE ASIA PACIFIC PTE LTD,Programme Spend (Oracle Projects Control Account)
FCO,FCO,01/11/2021,11403987,"35,324.93",COMPUTACENTER UK LTD,IT Management and Change
FCO,FCO,17/11/2021,11429282,"35,120.00",UNIVERSITY OF OXFORD,Programme Spend (Oracle Projects Control Account)
FCO,FCO,29/11/2021,11445171,"35,119.42",AFIP,Multiple Accounts
FCO,FCO,19/11/2021,11432991,"35,060.51",FCDO SERVICES,Construction Project more than 10k
FCO,FCO,01/11/2021,11404147,"35,000.00",FCDO POSTS,Funding Overseas Posts
FCO,FCO,29/11/2021,11445234,"34,828.08",ACCOMMODATION PROVIDER,Multiple Accounts
FCO,FCO,19/11/2021,11432993,"34,818.77",PUSHPAK COMMERCIAL COMPANY LIMITED,Multiple Accounts
FCO,FCO,09/11/2021,11416107,"34,800.00",CABINET OFFICE,Recruitment - Specialist
FCO,FCO,25/11/2021,11442166,"34,800.00",ROYAL UNITED SERVICES INSTITUTE FOR DEFENCE AND SECURITY STUDIES,Programme Spend (Oracle Projects Control Account)
FCO,FCO,01/11/2021,11404177,"34,785.13",FCDO POSTS,Funding Overseas Posts
FCO,FCO,19/11/2021,11433879,"34,688.82",INTERSERVE FM LTD,Construction Project more than 10k
FCO,FCO,29/11/2021,11445357,"34,470.48",AXIOM INTERNATIONAL LTD,Programme Spend (Oracle Projects Control Account)
FCO,FCO,24/11/2021,11438839,"34,423.50",RESTART CENTER,Programme Spend (Oracle Projects Control Account)
FCO,FCO,05/11/2021,11411296,"34,415.54",NATIONAL DEMOCRATIC INSTITUTE,Programme Spend (Oracle Projects Control Account)
FCO,FCO,09/11/2021,11415920,"34,331.33",FCDO SERVICES,Construction Project more than 10k
FCO,FCO,15/11/2021,11425850,"34,284.00",CEFAS (THE CENTRE FOR ENVIRONMENT FISHERIES + AQUACULTURE SCIENCE),Programme Spend (Oracle Projects Control Account)
FCO,FCO,02/11/2021,11406116,"34,267.50",COMPUTACENTER UK LTD,Additions-Assets Under Construction (Oracle PA Control Account)
FCO,FCO,11/11/2021,11420149,"34,205.38",G4S SECURITY SERVICE DRC SPRL,Local Guards
FCO,FCO,24/11/2021,11439164,"34,205.38",G4S SECURITY SERVICE DRC SPRL,Local Guards
FCO,FCO,29/11/2021,11445318,"34,004.84",FCDO SERVICES,IT/IS Consultancy
FCO,FCO,26/11/2021,11443521,"33,999.56",FCDO SERVICES,Other Machinery and Equipment
FCO,FCO,09/11/2021,11415516,"33,907.53",INSTITUT PASTEUR DU CAMBODGE,Programme Spend (Oracle Projects Control Account)
FCO,FCO,05/11/2021,11411412,"33,906.30",Artemis UK Solution LTD,Recharge Suspense Account (Oracle PA Control Account)
FCO,FCO,24/11/2021,11439251,"33,846.67",NOS AUDIOVISUAIS,Programme Spend (Oracle Projects Control Account)
FCO,FCO,26/11/2021,11443891,"33,805.98",EDF ENERGY,Electricity Non-Residential
FCO,FCO,19/11/2021,11433869,"33,771.54",INTERSERVE FM LTD,Construction Project more than 10k
FCO,FCO,29/11/2021,11446708,"33,664.78",THE BRITISH COUNCIL,Programme Spend (Oracle Projects Control Account)
FCO,FCO,19/11/2021,11433871,"33,631.07",INTERSERVE FM LTD,Construction Project more than 10k
FCO,FCO,12/11/2021,11423019,"33,521.31",ATKINS LTD,Unscheduled repairs to building infrastructure
FCO,FCO,18/11/2021,11431463,"33,507.65",EU DISINFO LAB,Programme Spend (Oracle Projects Control Account)
FCO,FCO,25/11/2021,11443064,"33,360.38",SAFEGUARD ALARMS PVT LTD,Local Guards
FCO,FCO,01/11/2021,11404163,"33,341.33",FCDO POSTS,Funding Overseas Posts
FCO,FCO,19/11/2021,11432909,"33,025.00",TEKSEC LTD,Additions-Assets Under Construction (Oracle PA Control Account)
FCO,FCO,23/11/2021,11437063,"32,954.00",WORLD HEALTH ORGANISATION,Programme Spend (Oracle Projects Control Account)
FCO,FCO,04/11/2021,11409570,"32,715.00",TORCHLIGHT SOLUTIONS LTD,Programme Spend (Oracle Projects Control Account)
FCO,FCO,15/11/2021,11425815,"32,655.41",RAMBOLL UK LTD,Additions-Assets Under Construction (Oracle PA Control Account)
FCO,FCO,24/11/2021,11439632,"32,626.06",JLL PROPERTY CONSULTANTS PTE LTD POE,Multiple Accounts
FCO,FCO,11/11/2021,11420492,"32,604.91",MERITAIN HEALTH,Multiple Accounts
FCO,FCO,03/11/2021,11407940,"32,542.48",GOVERNMENT COMMUNICATIONS BUREAU ADMIN A/C 6253,Customer Refund Account
FCO,FCO,11/11/2021,11420004,"32,428.29",ALZAD ALLIBI FOR CATERING SERVICES,Estates Management Services
FCO,FCO,25/11/2021,11442023,"32,331.66",FCDO SERVICES,Additions-Assets Under Construction (Oracle PA Control Account)
FCO,FCO,01/11/2021,11404165,"32,320.16",FCDO POSTS,Funding Overseas Posts
FCO,FCO,23/11/2021,11437208,"32,291.55",KPMG FIDUCIAIRE,Multiple Accounts
FCO,FCO,10/11/2021,11417960,"32,250.00",RISK ADVISORY GROUP GS LTD,Programme Spend (Oracle Projects Control Account)
FCO,FCO,30/11/2021,11447246,"32,207.56",COMPUTACENTER UK LTD,Organisation and Change Management Consultancy
FCO,FCO,10/11/2021,11418167,"32,204.16",NATIONAL YOUTH COUNCIL OF MACEDONIA,Programme Spend (Oracle Projects Control Account)
FCO,FCO,19/11/2021,11433764,"32,159.19",INTERSERVE FM LTD,Construction Project more than 10k
FCO,FCO,04/11/2021,11409391,"31,859.20",COMPUTACENTER UK LTD,IT/IS Consultancy
FCO,FCO,26/11/2021,11443197,"31,723.82",GERRYS TRAVEL AGENCY PRIVATE LIMITED,Multiple Accounts
FCO,FCO,02/11/2021,11406051,"31,656.80",FCDO SERVICES,Additions-Assets Under Construction (Oracle PA Control Account)
FCO,FCO,15/11/2021,11425762,"31,644.00",KOIZA INTERNATIONAL LTD,"Purchase of Furniture, Fittings and Domestic Appliances"
FCO,FCO,09/11/2021,11415515,"31,542.14",BBC MEDIA ACTION,Programme Spend (Oracle Projects Control Account)
FCO,FCO,16/11/2021,11427510,"31,541.36",BAE SYSTEMS APPLIED INTELLIGENCE LIMITED,IT Management and Change
FCO,FCO,26/11/2021,11444562,"31,499.91",OPTIMAL AIR,Grounds Maintenance
FCO,FCO,09/11/2021,11415846,"31,440.80",TETRA TECH INTERNATIONAL DEVELOPMENT,Programme Spend (Oracle Projects Control Account)
FCO,FCO,17/11/2021,11429549,"31,407.71",HERTFORDSHIRE CONSTABULARY,Programme Spend (Oracle Projects Control Account)
FCO,FCO,26/11/2021,11443773,"31,207.02",PICKFORDS MOVE MANAGEMENT LTD,Heavy Baggage
FCO,FCO,16/11/2021,11427505,"31,050.00",WORLDREACH SOFTWARE CORPORATION,End User Software and Hardware
FCO,FCO,16/11/2021,11427046,"30,918.61",CENTRAL PROVIDENT FUND BOARD,Multiple Accounts
FCO,FCO,16/11/2021,11427599,"30,910.52",SECRETARY NDMC NEW DELHI,Multiple Accounts
FCO,FCO,03/11/2021,11407817,"30,793.57",PLANON LTD,IT Management and Change
FCO,FCO,19/11/2021,11433743,"30,792.08",INTERSERVE FM LTD,Multiple Accounts
FCO,FCO,08/11/2021,11413679,"30,763.00",INDEPENDENT DIPLOMAT,Programme Spend (Oracle Projects Control Account)
FCO,FCO,04/11/2021,11409784,"30,732.00",ROYAL UNITED SERVICES INSTITUTE FOR DEFENCE AND SECURITY STUDIES,Programme Spend (Oracle Projects Control Account)
FCO,FCO,18/11/2021,11431567,"30,660.87",BABCOCK VEHICLE ENGINEERING LTD,Vehicle Maintenance
FCO,FCO,25/11/2021,11441829,"30,570.00",Runtime Collective trading as Brandwatch,Multiple Accounts
FCO,FCO,18/11/2021,11431355,"30,494.40",THE GLOBAL STRATEGY NETWORK,Programme Spend (Oracle Projects Control Account)
FCO,FCO,08/11/2021,11414439,"30,436.99",ACCOMMODATION PROVIDER,Rental Payments - residential
FCO,FCO,08/11/2021,11414440,"30,436.99",ACCOMMODATION PROVIDER,Rental Payments - residential
FCO,FCO,03/11/2021,11407665,"30,396.72",SIR GARY HICKINBOTTOM,Programme Spend (Oracle Projects Control Account)
FCO,FCO,03/11/2021,11407988,"30,374.25",JAMAICA PUBLIC SERVICE COMPANY LTD,Electricity Non-Residential
FCO,FCO,19/11/2021,11433749,"30,263.62",INTERSERVE FM LTD,Construction Project more than 10k
FCO,FCO,09/11/2021,11416047,"30,224.23",AXIOM INTERNATIONAL LTD,Programme Spend (Oracle Projects Control Account)
FCO,FCO,24/11/2021,11439204,"30,189.30",KRCT KOSOVO REHAB TORTURE VICTIM,Programme Spend (Oracle Projects Control Account)
FCO,FCO,25/11/2021,11442049,"30,163.38",PICKFORDS MOVE MANAGEMENT LTD,Heavy Baggage
FCO,FCO,02/11/2021,11405767,"30,113.00",FCDO SERVICES,Construction Project more than 10k
FCO,FCO,19/11/2021,11433230,"30,026.70",Alexander Mann Solutions Limited,Specialist Contractors
FCO,FCO,01/11/2021,11404103,"30,021.26",EDF ENERGY,Electricity Non-Residential
FCO,FCO,02/11/2021,11405995,"29,996.36",FCDO SERVICES,Additions-Assets Under Construction (Oracle PA Control Account)
FCO,FCO,24/11/2021,11439377,"29,960.76",JLL PROPERTY CONSULTANTS PTE LTD,Multiple Accounts
FCO,FCO,23/11/2021,11437016,"29,670.02",CONTRIBUTORY PROVIDENT FUND,Recharge Suspense Account (Oracle PA Control Account)
FCO,FCO,30/11/2021,11446919,"29,643.26",TECHNICAL SERVICES BUREAU CO,Additions-Assets Under Construction (Oracle PA Control Account)
FCO,FCO,23/11/2021,11437165,"29,598.98",KPMG FIDUCIAIRE,Multiple Accounts
FCO,FCO,24/11/2021,11438814,"29,546.71",ELEPHANT CONSERVATION CENTER,Programme Spend (Oracle Projects Control Account)
FCO,FCO,12/11/2021,11422610,"29,422.52",THE HALO TRUST,Programme Spend (Oracle Projects Control Account)
FCO,FCO,09/11/2021,11415509,"29,293.47",SOCIAL SECURITY CORPORATION,Multiple Accounts
FCO,FCO,15/11/2021,11425976,"29,216.45",AETNA,Multiple Accounts
FCO,FCO,12/11/2021,11422582,"29,114.00",CABINET OFFICE,Temporary Staff (Admin and Clerical Only)
FCO,FCO,02/11/2021,11406098,"29,008.88",ATALIAN SERVEST,Manned Guarding Services
FCO,FCO,24/11/2021,11439023,"28,955.12",INSTITUTE FOR SECURITY STUDIES ISS,Programme Spend (Oracle Projects Control Account)
FCO,FCO,16/11/2021,11427303,"28,920.12",MERITAIN HEALTH,Multiple Accounts
FCO,FCO,25/11/2021,11440655,"28,697.73",ACCOMMODATION PROVIDER,Rental Payments - residential
FCO,FCO,11/11/2021,11421150,"28,672.60",BILKENT UNIVERSITESI,Programme Spend (Oracle Projects Control Account)
FCO,FCO,22/11/2021,11435283,"28,637.99",ACCOMMODATION PROVIDER,Rental Payments - non residential
FCO,FCO,08/11/2021,11413435,"28,497.72",OPERADORA ATXK,Additions-Assets Under Construction (Oracle PA Control Account)
FCO,FCO,18/11/2021,11431338,"28,483.09",PROFESSIONAL LANGUAGE SOLUTIONS,Language Tuition: Essential
FCO,FCO,19/11/2021,11433894,"28,463.68",INTERSERVE FM LTD,Construction Project more than 10k
FCO,FCO,01/11/2021,11378760,"28,355.81",TETRA TECH INTERNATIONAL DEVELOPMENT BV,Programme Spend (Oracle Projects Control Account)
FCO,FCO,23/11/2021,11437222,"28,295.55",TETRA TECH INTERNATIONAL DEVELOPMENT BV,Programme Spend (Oracle Projects Control Account)
FCO,FCO,24/11/2021,11439454,"28,271.30",JLL PROPERTY CONSULTANTS PTE LTD,Multiple Accounts
FCO,FCO,24/11/2021,11439629,"28,168.54",JLL PROPERTY CONSULTANTS PTE LTD POE,Multiple Accounts
FCO,FCO,15/11/2021,11425663,"28,155.26",FCDO SERVICES,Additions-Assets Under Construction (Oracle PA Control Account)
FCO,FCO,25/11/2021,11440853,"28,090.90",IBTC PENSION MANAGERS LTD,Multiple Accounts
FCO,FCO,01/11/2021,11404138,"28,050.13",FCDO POSTS,Funding Overseas Posts
FCO,FCO,16/11/2021,11427998,"28,009.28",TOYOTA EAST AFRICA LTD,Additions-Assets Under Construction (Oracle PA Control Account)
FCO,FCO,16/11/2021,11427999,"28,009.28",TOYOTA EAST AFRICA LTD,Additions-Assets Under Construction (Oracle PA Control Account)
FCO,FCO,10/11/2021,11417846,"27,990.00",KINDRED AGENCY LTD,Public Relations
FCO,FCO,24/11/2021,11439636,"27,980.26",JLL PROPERTY CONSULTANTS PTE LTD POE,Multiple Accounts
FCO,FCO,25/11/2021,11441899,"27,974.47",HEALIX INTERNATIONAL LTD,Gp Consultations
FCO,FCO,03/11/2021,11407620,"27,911.18",SECURE CONSTRUCT LTD,Construction Project more than 10k
FCO,FCO,19/11/2021,11432642,"27,863.99",ACCOMMODATION PROVIDER,Rental Payments - residential
FCO,FCO,17/11/2021,11430031,"27,787.43",SCHOOL,Multiple Accounts
FCO,FCO,03/11/2021,11407324,"27,785.38",INTERNATIONAL CAPITAL TRADING,Multiple Accounts
FCO,FCO,11/11/2021,11420299,"27,769.28",CBRE LTD,Estates Management Services
FCO,FCO,30/11/2021,11447231,"27,738.93",PICKFORDS MOVE MANAGEMENT LTD,Heavy Baggage
FCO,FCO,29/11/2021,11445534,"27,731.84",ATKINS LTD,Additions-Assets Under Construction (Oracle PA Control Account)
FCO,FCO,04/11/2021,11409556,"27,616.36",ACCOMMODATION PROVIDER,Rental Payments - residential
FCO,FCO,17/11/2021,11429466,"27,613.86",MERITAIN HEALTH,Multiple Accounts
FCO,FCO,22/11/2021,11435715,"27,609.66",FUNDACION IDEAS PARA LA PAZ,Programme Spend (Oracle Projects Control Account)
FCO,FCO,22/11/2021,11435132,"27,494.68",JORDAN ELECTRIC POWER CO,Multiple Accounts
FCO,FCO,17/11/2021,11429227,"27,473.17",FOP SYLENKO,Recharge Suspense Account (Oracle PA Control Account)
FCO,FCO,09/11/2021,11416048,"27,399.51",AXIOM INTERNATIONAL LTD,Programme Spend (Oracle Projects Control Account)
FCO,FCO,04/11/2021,11409354,"27,386.09",AVARN SECURITY OY,Local Guards
FCO,FCO,29/11/2021,11445089,"27,356.90",MARKAZ GULF REAL ESTATE FUND,Rental Payments - residential
FCO,FCO,19/11/2021,11433788,"27,291.71",INTERSERVE FM LTD,Construction Project more than 10k
FCO,FCO,25/11/2021,11442400,"27,281.93",ABIOT ASSOCIATES LTD,Fuel Oil Non-Residential
FCO,FCO,23/11/2021,11437249,"27,214.99",TETRA TECH INTERNATIONAL DEVELOPMENT BV,Programme Spend (Oracle Projects Control Account)
FCO,FCO,16/11/2021,11427176,"27,120.49",GENDER PORT,Programme Spend (Oracle Projects Control Account)
FCO,FCO,10/11/2021,11419379,"27,038.15",BRITISH CONSULATE GENERAL JERUSALEM,Multiple Accounts
FCO,FCO,24/11/2021,11439579,"26,944.03",JLL PROPERTY CONSULTANTS PTE LTD,Multiple Accounts
FCO,FCO,24/11/2021,11439101,"26,843.41",ITAD LTD,Programme Spend (Oracle Projects Control Account)
FCO,FCO,09/11/2021,11415910,"26,835.51",MINIMAL RISK CONSULTANCY LTD,Additions-Assets Under Construction (Oracle PA Control Account)
FCO,FCO,23/11/2021,11437313,"26,811.51",HEALIX INTERNATIONAL LTD,Hospital/Specialist Treatment
FCO,FCO,19/11/2021,11433726,"26,733.19",INTERSERVE FM LTD,Multiple Accounts
FCO,FCO,26/11/2021,11443800,"26,713.49",SCHOOL,Multiple Accounts
FCO,FCO,19/11/2021,11432914,"26,685.50",TRIAL INTERNATIONAL,Programme Spend (Oracle Projects Control Account)
FCO,FCO,19/11/2021,11433888,"26,675.24",INTERSERVE FM LTD,Construction Project more than 10k
FCO,FCO,19/11/2021,11433889,"26,675.24",INTERSERVE FM LTD,Construction Project more than 10k
FCO,FCO,19/11/2021,11433861,"26,670.08",INTERSERVE FM LTD,Construction Project more than 10k
FCO,FCO,04/11/2021,11409006,"26,643.56",SNF CASHBOX TOP-UP,Inter Account Transfer (Cash in Transit)
FCO,FCO,26/11/2021,11443848,"26,624.00",WILTON PARK EXECUTIVE AGENCY,Programme Spend (Oracle Projects Control Account)
FCO,FCO,19/11/2021,11433863,"26,608.28",INTERSERVE FM LTD,Construction Project more than 10k
FCO,FCO,23/11/2021,11437484,"26,583.72",ORACLE CORPORATION (UK) LTD,IT Hosting
FCO,FCO,05/11/2021,11411385,"26,500.00",BRITAIN THINKS,Programme Spend (Oracle Projects Control Account)
FCO,FCO,24/11/2021,11438803,"26,387.96",ETIHAD TOWERS FOR REAL ESTATE,Multiple Accounts
FCO,FCO,17/11/2021,11429474,"26,387.73",MACE CONSULT LIMITED,Additions-Assets Under Construction (Oracle PA Control Account)
FCO,FCO,26/11/2021,11443803,"26,290.40",SCHOOL,Multiple Accounts
FCO,FCO,17/11/2021,11429291,"26,280.00",UNIVERSITY OF OXFORD,Programme Spend (Oracle Projects Control Account)
FCO,FCO,19/11/2021,11432779,"26,272.75",WHITEHALL FUNDING,Recharge Suspense Account (Oracle PA Control Account)
FCO,FCO,23/11/2021,11437790,"26,272.75",MOD DEFENCE,Recharge Suspense Account (Oracle PA Control Account)
FCO,FCO,23/11/2021,11436881,"26,232.51",SOCIAL SECURITY CORPORATION,Multiple Accounts
FCO,FCO,17/11/2021,11429454,"26,230.00",SAINT HELENA GOVERNMENT,Programme Spend (Oracle Projects Control Account)
FCO,FCO,24/11/2021,11439002,"26,179.92",GLASGOW LTD,Inward visits to the UK and UK Conferences
FCO,FCO,17/11/2021,11429288,"26,130.00",UNIVERSITY OF OXFORD,Programme Spend (Oracle Projects Control Account)
FCO,FCO,30/11/2021,11447244,"26,108.40",THE ROYAL BANK OF SCOTLAND,Multiple Accounts
FCO,FCO,15/11/2021,11425789,"25,935.26",RAMBOLL UK LTD,Repairs And Refurbishment: Works Residential
FCO,FCO,22/11/2021,11435651,"25,894.87",PEPCO,Electricity Non-Residential
FCO,FCO,24/11/2021,11440634,"25,894.33",IESCO,Electricity Residential
FCO,FCO,08/11/2021,11415407,"25,884.38",UNMCK,Recharge Suspense Account (Oracle PA Control Account)
FCO,FCO,19/11/2021,11433711,"25,835.66",INTERSERVE FM LTD,Multiple Accounts
FCO,FCO,24/11/2021,11438804,"25,796.08",ETIHAD TOWERS FOR REAL ESTATE,Multiple Accounts
FCO,FCO,24/11/2021,11438806,"25,796.08",ETIHAD TOWERS FOR REAL ESTATE,Multiple Accounts
FCO,FCO,04/11/2021,11409757,"25,776.99",SOT 161,Local Guards
FCO,FCO,12/11/2021,11422843,"25,698.24",DESIGN COLLABORATIVE,Programme Spend (Oracle Projects Control Account)
FCO,FCO,11/11/2021,11420185,"25,688.75",HEALIX INTERNATIONAL LTD,Gp Consultations
FCO,FCO,29/11/2021,11445477,"25,652.49",DMS AFRICA,Property Maintenance Overseas Residential
FCO,FCO,03/11/2021,11407425,"25,645.12",MEDIA MATTERS FOR DEMOCRACY,Programme Spend (Oracle Projects Control Account)
FCO,FCO,10/11/2021,11417578,"25,606.20",UMOJA HOUSE JMC,Property Maintenance Overseas Non Residential
FCO,FCO,17/11/2021,11429316,"25,519.60",FCDO SERVICES,IT Networking
FCO,FCO,01/11/2021,11404070,"25,385.01",FCDO POSTS,Funding Overseas Posts
FCO,FCO,08/11/2021,11413000,"25,219.22",Q PARK LIMITED,Rental Payments - residential
FCO,FCO,08/11/2021,11413001,"25,219.22",Q PARK LIMITED,Rental Payments - residential
FCO,FCO,16/11/2021,11427577,"25,138.82",SECRETARY NDMC NEW DELHI,Multiple Accounts
FCO,FCO,03/11/2021,11407332,"25,120.87",TORCHLIGHTGROUP LIMITED,Programme Spend (Oracle Projects Control Account)
FCO,FCO,03/11/2021,11407875,"25,117.87",CAPGEMINI UK PLC,IT/IS Consultancy
FCO,FCO,22/11/2021,11435668,"25,113.98",ONE HUNDRED TOWERS,Multiple Accounts
FCO,FCO,23/11/2021,11437371,"25,068.77",KPMG FIDUCIAIRE,Multiple Accounts
FCO,FCO,08/11/2021,11413623,"25,063.65",FINE GENERAL SERVICE SHARE COMPNAY,Local Guards
FCO,FCO,26/11/2021,11443808,"25,046.54",SCHOOL,Multiple Accounts
FCO,FCO,19/11/2021,11433352,"-27,138.65",SWS OTHER DEBTORS,Proceeds from the Sale of Capitalised Vehicles
FCO,FCO,18/11/2021,11431347,"-27,184.50",PROFESSIONAL LANGUAGE SOLUTIONS,Language Tuition: Course materials
FCO,FCO,10/11/2021,11407988,"-30,374.25",JAMAICA PUBLIC SERVICE COMPANY LTD,Electricity Non-Residential
FCO,FCO,25/11/2021,11441824,"-30,570.00",Runtime Collective trading as Brandwatch,Multiple Accounts
FCO,FCO,17/11/2021,11429177,"-33,695.03",RSM OTHER DEBTORS,Rental Payments - residential
FCO,FCO,22/11/2021,11435273,"-34,702.06",TETRA TECH MANAGEMENT SERVICES LIMITED,Additions-Assets Under Construction (Oracle PA Control Account)
FCO,FCO,04/11/2021,11409258,"-35,640.00",COMMONWEALTH SECRETARIAT,Programme Spend (Oracle Projects Control Account)
FCO,FCO,01/11/2021,11395267,"-39,702.43",AIRBUS DEFENCE AND SPACE,Additions-Assets Under Construction (Oracle PA Control Account)
FCO,FCO,10/11/2021,11417777,"-47,875.00",CAUTION YOUR BLAST LTD,Additions-Assets Under Construction (Oracle PA Control Account)
FCO,FCO,16/11/2021,11427182,"-50,042.07",FCDO SERVICES,Additions-Assets Under Construction (Oracle PA Control Account)
FCO,FCO,22/11/2021,11435293,"-61,273.45",TETRA TECH MANAGEMENT SERVICES LIMITED,Repairs And Refurbishment: Works Residential
FCO,FCO,10/11/2021,11417820,"-71,453.26",ORACLE CORPORATION (UK) LTD,IT Hosting
FCO,FCO,10/11/2021,11417824,"-71,453.26",ORACLE CORPORATION (UK) LTD,IT Hosting
FCO,FCO,22/11/2021,11281691,"-83,066.97",BRITISH TELECOM PLC,Multiple Accounts
FCO,FCO,12/11/2021,11422528,"-118,500.00",ORACLE CORPORATION (UK) LTD,IT Hosting
FCO,FCO,22/11/2021,11435282,"-164,026.84",TETRA TECH MANAGEMENT SERVICES LIMITED,Additions-Assets Under Construction (Oracle PA Control Account)
FCO,FCO,09/11/2021,11415890,"-248,490.00",SOFTWAREONE UK LTD,End User Software and Hardware
